Cogmind - Beta 16.1 @@@ ROGUE MODE // 2026.04.19 @ 22:21:45 Player: Thqwib-Linux Result: Destroyed by Executioner with Helical Railgun Performance ------------- Evolutions (9) 4500 Regions Visited (34) 6800 Robots Destroyed (483) 2415 Value Destroyed (27597) 27597 Prototype IDs (87) 1740 Alien Tech Used (3) 600 Bonus (21214) 21214 TOTAL SCORE: 64866 Bonus ------- Triggered High Security 1000 High Alert Combat Kills 8847 Follower Combat Kills 2221 Entered Garrisons 800 Entered DSFs 1000 Aligned with FarCom 300 Acquired ECA 300 Met Zhirov 300 Met Warlord at Base 500 MAIN.C Attacked Warlord 500 Warlord Defense Kills 528 Met Warlord at Research 2000 Invited to Help at Command 2000 Scanned by Researcher 500 Met Warlord at Command 2000 Friendly Fire -1582 Cogmind --------- Core Integrity 0/1600 Matter 122/300 Energy 100/100 System Corruption 59% Temperature Cool (1) Movement Core (1450) Ox28 Location -1/Command Parts ------- > --- POWER (3) -------- (None) > --- PROPULSION (6) --- (None) > --- UTILITY (13) ----- Huge Storage Unit Experimental Targeting Computer Experimental Core Analyzer > --- WEAPON (4) ------- Advanced KE Penetrator > --- INVENTORY (25) --- Advanced Transmission Jammer Graphene Brace Improved Shock Absorption System Improved Point Defense System Warp Gun Heavy Dispersion Rifle Molecular Scythe Peak State ------------ > --- POWER ------------ Improved Quantum Reactor Improved Quantum Reactor Zero-point Reactor > --- PROPULSION ------- Biometal Heavy Treads Centrium Wheel Centrium Wheel Centrium Wheel High-density Centrium Wheel > --- UTILITY ---------- Experimental Heat Sink Huge Storage Unit Long-range Sensor Array Advanced Signal Interpreter Experimental Targeting Computer Experimental Core Analyzer Experimental Core Analyzer Improved Armor Integrity Analyzer Advanced Transmission Jammer Centrium Light Armor Plating Centrium Light Armor Plating Advanced Force Field Advanced System Shield > --- WEAPON ----------- Cooled Nova Cannon Helical Railgun Helical Railgun Helical Railgun > --- INVENTORY -------- Heavy Siege Treads Advanced Cooling System Quantum Capacitor Advanced Phase Shifter Layered Medium Armor Plating Graphene Brace Advanced Focal Shield Improved Shock Absorption System Advanced Force Field Long-range Tractor Beam Warp Gun Vortex Driver Advanced KE Penetrator Advanced KE Penetrator Advanced KE Penetrator Advanced KE Penetrator Helical Railgun Helical Railgun Helical Railgun Omega Cannon Fusion Bomb Launcher Molecular Scythe [Rating: 230] Favorites ----------- Power Improved Quantum Reactor Engine Cooled Ion Engine Power Core Micro Nuclear Core Reactor Improved Quantum Reactor Propulsion Compact Wheel Treads Heavy Treads Leg Aluminum Leg Wheel Compact Wheel Utility High-capacity Storage Unit Device Experimental Heat Sink Storage High-capacity Storage Unit Processor Experimental Core Analyzer Hackware Advanced System Shield Protection Centrium Light Armor Plating Weapon Helical Railgun Energy Gun Gatling Laser Energy Cannon Guided Plasma Cannon Ballistic Gun Helical Railgun Ballistic Cannon Heavy Mass Driver Launcher Missile Launcher Slashing Weapon Great Axe Piercing Weapon Kinetic Spear Build | -11 -10 -10 -10 -9 -8 -8 -8 -8 -7 -7 -7 -7 -6 -6 -6 -6 -5 -5 -5 -5 -5 -5 -4 -4 -4 -4 -4 -3 -3 -3 -2 -2 -1 -1 ------- Run | Yrd Mat Min Exi Min Mat Gar Mat Gar Fac Was Fac Gar Fac Gar Fac DSF Fac Was Fac Upp Upp Zhi Pro Fac Upp Upp War Pro Res DSF Res Tes Acc Com Slots Evolved 18 | . . . . . 4 . . . 2 . . . 2 . . . 2 . . . . . . 2 . . . . 2 . 2 . 2 . Power 2 | . . . . . . . . . . . . . . . . . 1 . . . . . . . . . . . . . . . 1 . Propulsion 4 | . . . . . 1 . . . 1 . . . . . . . 1 . . . . . . . . . . . 1 . . . . . Utility 11 | . . . . . 2 . . . 1 . . . 2 . . . . . . . . . . 2 . . . . 1 . 2 . 1 . Weapon 1 | . . . . . 1 . . . . . . . . . . . . . . . . . . . . . . . . . . . . . Parts Attached 318 | 3 16 . 1 5 22 16 11 7 9 2 8 2 9 10 . 7 5 5 2 . 2 3 4 31 . 3 4 1 2 14 27 23 21 43 Power 43 | . 3 . . . 1 1 2 . 1 . 1 . 1 1 . 1 1 . . . . . 1 6 . 1 2 . . 3 4 2 4 7 Engine 11 | . 3 . . . 1 . 1 . 1 . . . . 1 . 1 1 . . . . . . 1 . . 1 . . . . . . . Core 5 | . . . . . . 1 1 . . . 1 . . . . . . . . . . . . 1 . 1 . . . . . . . . Reactor 27 | . . . . . . . . . . . . . 1 . . . . . . . . . 1 4 . . 1 . . 3 4 2 4 7 Propulsion 61 | 2 5 . . . 8 2 . . . 1 3 . 1 3 . 2 1 1 . . . 1 . 4 . . . . 1 4 3 4 4 11 Treads 25 | 1 2 . . . 3 1 . . . . 1 . . 3 . 2 . 1 . . . . . . . . . . . 4 1 1 1 4 Leg 2 | . . . . . . . . . . . . . . . . . . . . . . . . . . . . . . . . 1 . 1 Wheel 34 | 1 3 . . . 5 1 . . . 1 2 . 1 . . . 1 . . . . 1 . 4 . . . . 1 . 2 2 3 6 Hover . | . . . . . . . . . . . . . . . . . . . . . . . . . . . . . . . . . . . Flight . | . . . . . . . . . . . . . . . . . . . . . . . . . . . . . . . . . . . Utility 137 | 1 4 . . 1 6 7 6 4 5 . 2 2 6 5 . 4 1 1 2 . 2 2 1 15 . 1 . . 1 4 17 7 9 21 Device 55 | 1 . . . . 2 3 1 1 2 . . . 2 2 . 3 . 1 2 . . 1 1 7 . . . . 1 1 6 4 6 8 Storage 7 | . 1 . . . 1 1 1 . 1 . . . . . . . . . . . . . . 1 . . . . . . . 1 . . Processor 26 | . . . . . . 1 1 . 1 . . 1 . 3 . 1 . . . . 1 . . 4 . . . . . 2 5 . 1 5 Hackware 9 | . . . . . . . . . 1 . . . 1 . . . 1 . . . . . . 1 . . . . . 1 2 1 1 . Protection 40 | . 3 . . 1 3 2 3 3 . . 2 1 3 . . . . . . . 1 1 . 2 . 1 . . . . 4 1 1 8 Artifact . | . . . . . . . . . . . . . . . . . . . . . . . . . . . . . . . . . . . Weapon 77 | . 4 . 1 4 7 6 3 3 3 1 2 . 1 1 . . 2 3 . . . . 2 6 . 1 2 1 . 3 3 10 4 4 Energy Gun 10 | . 1 . . . 1 . . . 1 . 1 . . . . . . . . . . . . 2 . . . . . 1 . 3 . . Energy Cannon 8 | . . . 1 . 1 1 . . . . . . . . . . . . . . . . . . . . 1 . . 1 . 3 . . Ballistic Gun 47 | . 3 . . 3 5 5 2 2 1 1 . . 1 1 . . 2 3 . . . . 2 3 . 1 . 1 . . 3 1 3 4 Ballistic Cannon 3 | . . . . . . . . . . . . . . . . . . . . . . . . . . . . . . 1 . 2 . . Launcher 5 | . . . . 1 . . 1 . . . 1 . . . . . . . . . . . . . . . 1 . . . . . 1 . Special Weapon . | . . . . . . . . . . . . . . . . . . . . . . . . . . . . . . . . . . . Impact Weapon . | . . . . . . . . . . . . . . . . . . . . . . . . . . . . . . . . . . . Slashing Weapon 3 | . . . . . . . . 1 1 . . . . . . . . . . . . . . 1 . . . . . . . . . . Piercing Weapon 1 | . . . . . . . . . . . . . . . . . . . . . . . . . . . . . . . . 1 . . Special Melee Weapon . | . . . . . . . . . . . . . . . . . . . . . . . . . . . . . . . . . . . Unidentified Prototypes 38 | . . . . . 3 . . 1 . . . . . 4 . . . . 1 . . 3 1 3 . . 1 . 1 . 6 10 . 4 Corrupted Parts 1 | . . . . . . . . 1 . . . . . . . . . . . . . . . . . . . . . . . . . . System Corruption 3 | . . . . . . . . 3 . . . . . . . . . . . . . . . . . . . . . . . . . . Parts Lost 84 | . 2 . . 1 2 5 3 3 . . 2 . . 4 . . . . . . 1 . . 11 . 1 . . . 3 1 . 9 36 Power 17 | . . . . . 1 . . . . . . . . 1 . . . . . . . . . 4 . 1 . . . 1 . . 2 7 Propulsion 13 | . 1 . . . . 1 . 1 . . 2 . . 1 . . . . . . . . . 2 . . . . . . . . 1 4 Utility 33 | . 1 . . 1 1 1 2 1 . . . . . 2 . . . . . . 1 . . 1 . . . . . 2 1 . 2 17 Weapon 21 | . . . . . . 3 1 1 . . . . . . . . . . . . . . . 4 . . . . . . . . 4 8 Highest Loss Streak 21 | . 2 . . 1 2 2 2 3 . . 1 . . 3 . . . . . . 1 . . 6 . 1 . . . 2 1 . 2 21 To Critical Strikes 1 | . . . . . . 1 . . . . . . . . . . . . . . . . . . . . . . . . . . . . Average Backups 17 | 3 8 10 10 11 12 15 17 17 17 19 17 17 17 18 16 19 16 17 17 18 17 18 18 17 16 15 17 19 18 18 17 20 21 20 Power . | 1 . 1 1 1 . 1 1 2 1 . 1 1 1 . 1 1 . . . . . . . . 1 . . 1 1 . 1 1 . 1 Propulsion 2 | 2 2 2 2 2 1 2 3 4 3 3 2 2 3 3 3 4 3 3 3 3 3 2 2 1 1 1 1 1 1 1 1 2 1 1 Utility 5 | . . 1 1 . 1 2 3 2 2 4 5 6 5 5 4 4 3 4 4 5 5 7 8 8 8 8 8 8 8 8 7 7 8 8 Weapon 7 | . 3 5 5 7 7 8 7 7 8 9 7 6 6 6 6 8 9 9 9 9 8 7 6 6 6 6 8 8 8 7 7 10 10 9 Tool/Special . | . . . . . . . . . . . . . . . . . . . . . . . . . . . . . . . . . . . Unused Backups 68 | 4 8 . . . 4 . 2 2 1 3 3 4 1 4 . 4 . . . 1 1 1 . 8 . . . . . 3 7 1 2 4 Power 12 | . 4 . . . 1 . 1 . . 1 . . . 1 . 1 . . . . . . . . . . . . . . 1 1 . 1 Propulsion 15 | 4 . . . . 1 . . 1 . 2 2 . 1 . . . . . . . . . . 1 . . . . . 2 . . . 1 Utility 22 | . 1 . . . 1 . 1 . . . . 4 . 3 . 1 . . . . 1 1 . 3 . . . . . 1 3 . 1 1 Weapon 17 | . 3 . . . 1 . . 1 1 . 1 . . . . 2 . . . . . . . 3 . . . . . . 3 . 1 1 Tool/Special 2 | . . . . . . . . . . . . . . . . . . . . 1 . . . 1 . . . . . . . . . . Average Slot Usage (%) 91 | . 99 100 100 100 98 92 89 90 91 78 90 84 85 91 90 86 91 89 88 88 87 87 87 89 90 89 90 90 89 86 89 92 94 90 Engine 3 | . 14 14 14 14 9 2 6 9 7 7 6 . . . 6 6 10 11 11 11 11 11 5 2 . . . . . . . . . . Core 1 | . . . . . . 6 2 . . . . 7 1 . . . . . . . . . . 2 . . 5 5 4 1 . . . . Reactor 4 | . . . . . . . . . . . . . 4 5 . . . . . . . . 4 5 10 9 5 5 4 7 8 8 10 10 Treads 6 | . 17 14 14 14 9 9 9 9 7 . 6 7 6 12 13 13 11 8 5 5 5 5 5 4 5 5 5 5 4 4 7 4 3 4 Wheel 11 | . 10 14 14 14 18 11 9 9 15 23 14 7 6 6 6 6 11 11 11 11 11 11 11 9 10 10 10 10 12 13 12 15 14 12 Device 10 | . 2 . . . 12 12 8 9 14 15 14 7 13 6 11 11 14 11 11 11 10 10 10 9 10 9 9 10 12 10 11 11 14 15 Storage 6 | . 14 14 14 14 9 9 9 9 7 7 7 7 6 6 6 6 5 5 5 5 5 5 5 5 5 5 5 5 4 4 4 4 3 3 Processor 14 | . . . . . . 5 6 9 11 7 7 14 13 18 13 20 17 17 17 17 16 17 16 20 25 25 25 25 22 21 20 20 19 18 Hackware 3 | . . . . . . . . . 2 7 7 . . 2 . . 2 5 5 5 5 5 5 8 5 5 5 5 4 4 7 8 5 1 Protection 5 | . 11 14 14 14 13 9 12 9 . . . 6 11 10 13 7 . . . . . . . . . . . . . 3 5 4 5 5 Energy Gun 1 | . 6 . . . . . . . 2 1 2 3 3 4 4 . . . . . . . . . . 2 4 5 2 . . . . . Ballistic Gun 15 | . 21 28 23 21 26 25 26 25 15 7 14 15 12 12 14 11 14 10 16 17 16 17 18 16 20 16 15 15 13 10 8 10 10 12 Slashing Weapon 1 | . . . . . . . . 1 4 . 4 2 2 1 . . . . . . . . . 2 . . . . 1 . . 1 . . Peak Build Rating 230 | 7 11 11 15 15 35 42 37 39 51 56 61 64 74 83 66 86 91 94 95 94 98 91 97 116 115 117 120 120 138 141 191 220 230 222 Average Rating 105 | 6 9 11 12 13 31 35 34 36 46 52 54 60 70 72 65 83 84 89 93 93 91 89 93 108 115 115 117 120 135 136 165 199 220 203 On Entrance 80 | 6 7 11 11 15 13 34 33 35 38 51 53 61 60 71 61 65 85 89 94 94 94 89 91 93 115 115 115 118 120 136 139 188 203 212 Avg Prop Armor Cover (%) 10 | 12 9 8 8 8 7 8 8 9 10 . 15 12 10 12 11 13 15 12 12 12 12 12 11 11 11 11 10 11 11 10 14 10 8 7 Naked Turns . | . . . . . . . . . . . . . . . . . . . . . . . . . . . . . . . . . . . Heaviest Build 210 | 12 39 39 41 40 48 68 67 61 59 63 65 69 79 83 74 79 82 83 81 80 81 81 91 103 95 97 100 96 97 108 129 176 196 210 Greatest Support 225 | 10 40 16 16 16 32 32 28 28 44 60 32 28 28 50 28 28 44 70 44 44 44 44 44 70 44 44 44 44 64 70 64 70 68 225 Greatest Overweight (x) 4 | 1 2 2 2 2 2 4 2 2 1 1 4 2 2 2 2 2 1 1 1 1 1 1 2 2 2 2 2 2 2 1 3 3 2 3 Average Overweight (x) 1 | 1 1 2 2 2 1 1 1 2 1 . 1 2 1 1 2 2 1 1 1 1 1 1 1 1 2 1 2 2 1 1 1 2 2 1 Largest Inventory Capacity 25 | 8 15 15 15 15 15 20 20 20 20 20 20 20 20 20 20 20 20 20 20 20 20 20 20 20 20 20 20 20 20 20 20 25 25 25 Average Capacity 20 | 8 12 15 15 15 15 19 20 20 20 20 20 20 20 20 20 20 20 20 20 20 20 20 20 20 20 20 20 20 20 20 20 24 25 25 Most Carried 25 | 6 12 11 13 13 15 20 20 20 20 20 20 20 20 20 18 20 20 20 20 20 20 20 20 20 18 18 20 20 20 20 20 25 25 25 Average Carried 19 | 3 8 10 11 12 13 16 18 18 18 19 19 19 19 19 16 19 17 18 19 20 19 19 19 18 17 16 18 19 19 19 19 24 24 23 Final Capacity 25 | 8 15 15 15 15 15 20 20 20 20 20 20 20 20 20 20 20 20 20 20 20 20 20 20 20 20 20 20 20 20 20 20 25 25 25 Final Carried 25 | 3 11 10 13 12 15 17 19 17 20 20 20 20 20 18 17 20 18 20 20 20 19 20 19 17 17 16 20 20 20 20 20 25 25 7 Class Distribution -------------------- 35% | Scavenger-Gunner 18% | Scavenger-Tank 12% | Hacker-Gunner 10% | Mutant 7% | Scavenger-Mutant 7% | Tank 3% | Scientist-Gunner Dominant Class ---------------- Mutant | -10/Materials Mutant | -10/Mines Mutant | -10/Exiles Mutant | -9/Mines Tank | -8/Materials Scavenger-Gunner | -8/Garrison Scavenger-Gunner | -8/Materials Scavenger-Gunner | -8/Garrison Mutant | -7/Factory Scavenger-Mutant | -7/Waste Scavenger-Mutant | -7/Factory Tank | -7/Garrison Scavenger-Tank | -6/Factory Scavenger-Gunner | -6/Garrison Scavenger-Tank | -6/Factory Scavenger-Gunner | -6/DSF Scavenger-Gunner | -5/Factory Scavenger-Gunner | -5/Waste Scavenger-Gunner | -5/Factory Scavenger-Gunner | -5/Upper Caves Scavenger-Gunner | -5/Upper Caves Scavenger-Gunner | -5/Zhirov Scavenger-Gunner | -4/Proximity Caves Hacker-Gunner | -4/Factory Scavenger-Gunner | -4/Upper Caves Scientist-Gunner | -4/Upper Caves Scientist-Gunner | -4/Warlord Scavenger-Gunner | -3/Proximity Caves Scavenger-Gunner | -3/Research Scavenger-Gunner | -3/DSF Hacker-Gunner | -2/Research Scavenger-Gunner | -2/Testing Scavenger-Tank | -1/Access Scavenger-Tank | -1/Command Resources | -11 -10 -10 -10 -9 -8 -8 -8 -8 -7 -7 -7 -7 -6 -6 -6 -6 -5 -5 -5 -5 -5 -5 -4 -4 -4 -4 -4 -3 -3 -3 -2 -2 -1 -1 ----------- Run | Yrd Mat Min Exi Min Mat Gar Mat Gar Fac Was Fac Gar Fac Gar Fac DSF Fac Was Fac Upp Upp Zhi Pro Fac Upp Upp War Pro Res DSF Res Tes Acc Com Matter Collected 22045 | 272 444 66 . 44 2099 1445 425 436 457 28 531 425 496 955 . 313 . 402 47 91 134 . 307 1760 59 284 207 20 . 362 984 1890 4295 2767 Remotely 5745 | . . . . . . . . . . . . . . . . . . . . . . . 204 411 . 155 . . . 108 240 411 2679 1537 Salvage Created 26300 | 113 842 77 . 55 2608 1609 266 308 371 726 856 495 391 1298 . 964 . 1423 . 66 77 . . 2264 . 151 194 . . 325 498 1966 4742 3615 Parts 1161 | 6 48 4 . 7 142 66 10 22 24 16 34 27 13 67 . 47 . 15 . 1 1 . . 126 . 4 10 . . 17 23 84 208 139 Haulers Intercepted 20 | . 2 . . . 6 . 2 . 1 . 4 . 2 . . 1 . . . . . . . . . . . . . . . . 2 . Recyclers Shooed 16 | 1 . . . . 3 . . . . . 1 . . . . . . . . . . . . 1 . . . . . . . 1 3 6 Parts Field Recycled . | . . . . . . . . . . . . . . . . . . . . . . . . . . . . . . . . . . . Retrieved Matter . | . . . . . . . . . . . . . . . . . . . . . . . . . . . . . . . . . . . Parts Self-Destructed 28 | . . . . . . . . . . . . . . . . . . . . 6 11 . 5 . . 6 . . . . . . . . Prevented . | . . . . . . . . . . . . . . . . . . . . . . . . . . . . . . . . . . . Parts Restored 4 | . . . . . . . . . . . . . 2 . . . 1 . . 1 . . . . . . . . . . . . . . Broken 4 | . . . . . . . . . . . . . 2 . . . 1 . . 1 . . . . . . . . . . . . . . Kills | -11 -10 -10 -10 -9 -8 -8 -8 -8 -7 -7 -7 -7 -6 -6 -6 -6 -5 -5 -5 -5 -5 -5 -4 -4 -4 -4 -4 -3 -3 -3 -2 -2 -1 -1 ------- Run | Yrd Mat Min Exi Min Mat Gar Mat Gar Fac Was Fac Gar Fac Gar Fac DSF Fac Was Fac Upp Upp Zhi Pro Fac Upp Upp War Pro Res DSF Res Tes Acc Com Combat Hostiles Destroyed 384 | . 18 2 . 2 35 29 4 10 4 3 13 10 4 28 . 11 . 5 . 1 1 . . 29 . 3 4 . . 8 8 26 77 49 Guns 275 | . 18 2 . 2 35 22 3 10 4 3 13 9 4 21 . 8 . 3 . 1 1 . . 21 . 2 . . . 2 3 18 37 33 Cannons 62 | . . . . . . 2 1 . . . . 1 . 1 . 3 . . . . . . . . . . . . . 2 5 8 31 8 AOE 46 | . . . . . . 5 . . . . . . . 5 . . . 2 . . . . . 8 . 1 4 . . 4 . . 9 8 Classes Destroyed 27 | 2 4 . . . 4 2 . 2 1 1 . . . 3 . 2 . . . . . . . . . . . . . . 1 2 1 2 Worker 33 | . 3 . . 1 8 . 1 . 2 . 1 . . . . . . . . . . . . 1 . . . . . . . 4 7 5 Builder 12 | . . . . . 4 . . . . . . . . . . . . . . . . . . 3 . . . . . . . 4 1 . Tunneler 7 | 2 . . . . . . . . 1 . 1 . 1 . . . . . . . . . . . . . . . . . . . 2 . Hauler 20 | . 2 . . . 6 . 2 . 1 . 4 . 2 . . 1 . . . . . . . . . . . . . . . . 2 . Recycler 12 | 1 1 . . . 4 . . . . . 1 . . . . . . . . . . . . 3 . . . . . . . . . 2 Mechanic 5 | . . . . . . . . . . . . . . . . . . . . . . . . . . . . . . . . . 1 4 Operator 1 | . . . . . . . . . 1 . . . . . . . . . . . . . . . . . . . . . . . . . Watcher 6 | . . . . . 1 . . . . . . . . . . . . . . . . . . 1 . . . . . . . 1 3 . Swarmer 58 | . 6 . . 2 . 8 1 2 . . 5 . . 9 . . . . . . . . . 5 . . . . . 5 . . 15 . Saboteur 2 | . . . . . . . . . . . . . . . . . . . . . . . . . . . . . . . . . . 2 Grunt 151 | . 12 2 . . 23 11 3 3 1 . 2 5 1 11 . 5 . . . 1 . . . 6 . 3 2 . . . 1 6 33 20 Brawler 9 | . . . . . . . . . . . . . . 2 . . . . . . 1 . . . . . . . . . . . 1 5 Duelist 16 | . . . . . 4 . . 1 . . 1 . . 1 . . . . . . . . . 1 . . . . . . . . 4 4 Protector 9 | . . . . . . . . 1 . . . . . . . . . . . . . . . 1 . . 1 . . . . . 3 3 Researcher 2 | . . . . . . . . . . . . . . . . . . . . . . . . . . . . . . . . 2 . . Sentry 29 | . . . . . 8 6 . 1 2 . 2 3 . 2 . . . . . . . . . 2 . . . . . . . . 1 2 Demolisher 2 | . . . . . . . . 1 . . . . . . . . . . . . . . . . . . . . . . 1 . . . Specialist 6 | . . . . . . . . . . . . . . . . 4 . . . . . . . . . . . . . 2 . . . . Hunter 23 | . . . . . . 2 . . . . . . 2 . . 1 . . . . . . . 3 . . 1 . . . . 7 5 2 Programmer 49 | . . . . . . 2 . 1 1 . 3 2 1 . . . . . . . . . . 11 . . . . . . 3 7 8 10 Heavy 3 | . . . . . . . . . . . . . . . . 1 . . . . . . . . . . . . . 1 . . . 1 Q-Series 13 | . . . . . . . . . . . . . . . . . . . . . . . . . . . . . . . . 6 7 . Behemoth 1 | . . . . . . . . . . . . . . 1 . . . . . . . . . . . . . . . . . . . . Compactor 8 | . . . . . . . . . . 3 . . . . . . . 5 . . . . . . . . . . . . . . . . Striker 2 | . . . . . . . . . . . . . . . . . . . . . . . . . . . . . . . 2 . . . Executioner 3 | . . . . . . . . . . . . . . 2 . . . . . . . . . . . . . . . . 1 . . . Troll 1 | . . . . . . . . . . . . . . . . . . . . . . . . . . . . . . . . . . 1 Best Kill Streak 15 | 2 7 2 . 3 11 5 4 3 2 3 7 3 2 6 . 3 . 1 . 1 1 . . 6 . 3 4 . . 5 7 5 15 10 Combat Bots Only 10 | . 6 2 . 2 4 5 3 3 2 3 6 3 2 6 . 3 . 1 . 1 1 . . 6 . 3 4 . . 5 7 4 10 10 Max Kills in Single Turn 6 | 1 1 1 . 1 2 3 1 1 1 1 2 1 2 3 . 1 . 1 . 1 1 . . 2 . 2 2 . . 3 1 2 3 6 Gunslinging 1 | . . . . . 1 1 . . . . 1 . . 1 . . . . . . . . . . . . . . . . . . 1 1 Exploded 3 | . . . . . . 3 . . . . . . . 3 . . . 1 . . . . . 2 . 1 2 . . 3 . . 3 3 Melee . | . . . . . . . . . . . . . . . . . . . . . . . . . . . . . . . . . . . Uniques/NPCs Destroyed . | . . . . . . . . . . . . . . . . . . . . . . . . . . . . . . . . . . . Combat | -11 -10 -10 -10 -9 -8 -8 -8 -8 -7 -7 -7 -7 -6 -6 -6 -6 -5 -5 -5 -5 -5 -5 -4 -4 -4 -4 -4 -3 -3 -3 -2 -2 -1 -1 -------- Run | Yrd Mat Min Exi Min Mat Gar Mat Gar Fac Was Fac Gar Fac Gar Fac DSF Fac Was Fac Upp Upp Zhi Pro Fac Upp Upp War Pro Res DSF Res Tes Acc Com Hostile Shots Fired 2162 | . 81 14 . 32 92 83 17 51 24 . 70 74 19 90 . 33 . . . . 6 . . 160 . 24 . . . 41 57 158 427 609 Missed 526 | . 14 4 . 7 26 23 7 21 9 . 22 28 9 20 . 11 . . . . . . . 37 . 5 . . . 13 8 33 109 120 Hits 1636 | . 67 10 . 25 66 60 10 30 15 . 48 46 10 70 . 22 . . . . 6 . . 123 . 19 . . . 28 49 125 318 489 Melee 52 | . . . . . . . . 4 . . 3 . . 1 . . . . . . 6 . . 2 . . . . . . 1 . 6 29 Projectile 1584 | . 67 10 . 25 66 60 10 26 15 . 45 46 10 69 . 22 . . . . . . . 121 . 19 . . . 28 48 125 312 460 AOE 23 | . . . . . . . . 4 . . . . . . . . . . . . . . . . . . . . . . 2 . 17 . Critical Strikes 82 | . 2 . . . 4 2 2 1 . . . . . 2 . . . . . . . . . 4 . 2 . . . . 3 9 9 42 Actively Blocked 2 | . . . . . . . . . . . . . . . . . . . . . . . . . . . . . . . . . . 2 Part Disruptions 5 | . . . . . . . . . . . . . . . . 1 . . . . . . . 2 . . . . . . 1 . . 1 Actively Blocked 1 | . . . . . . . . . . . . . . . . . . . . . . . . . . . . . . . 1 . . . Damage Taken 27928 | . 763 158 . 199 937 774 222 689 156 . 714 416 175 1415 . 405 . . 75 . 80 . 52 2730 . 389 41 . . 978 1010 1687 3885 9978 Core 3006 | . 141 33 . 22 107 50 . 97 20 . 93 58 19 145 . 18 . . . . . . . 109 . 44 . . . 203 108 119 262 1358 Absorbed by Shields 8222 | . . . . . 101 109 . . . . . . . . . . . . . . . . . 175 . . . . . . 584 1414 3784 2055 Reduced by Siege Mode 1592 | . . . . . . . . . . . . . . . . . . . . . . . . 50 . . . . . . 119 160 156 1107 Redirected to Shielding 151 | . . . . . . . . . . . . . . . . . . . . . . . . 53 . . . . . . 98 . . . Ignored by Resistances 604 | . . . . . . . . . . . . . . . . . . . . . . . . . . . . . . . . . 254 350 Regen/Repaired (Parts) 1601 | . . . . . 16 . 9 . 60 . 110 . . . 97 . 221 51 90 . 23 . . 392 . . 376 . . . 135 21 . . Core Remaining (%) 75 | 100 . . . 21 . . . 53 . . . 75 . . . 78 . . . . . . 100 . . . . 81 . 84 . 84 . . Volleys Fired 1187 | 13 70 11 1 10 145 142 29 48 10 . 32 39 22 83 . 37 . 16 2 1 7 . 9 61 . 11 7 . . 12 18 68 164 119 Largest 4 | 2 2 2 1 2 3 3 3 3 3 . 3 3 3 3 . 3 . 3 1 3 3 . 3 4 . 4 3 . . 4 3 4 4 4 Hottest 258 | 40 60 40 20 88 75 120 120 73 130 . 130 130 126 141 . 120 . 102 36 93 101 . 101 166 . 171 100 . . 138 141 214 176 258 Shots Fired 3116 | 26 140 22 1 20 434 324 77 125 29 30 94 76 59 174 . 73 . 52 2 3 20 . 11 210 . 21 10 . . 39 50 191 438 365 Gun 2742 | 26 140 22 1 17 433 279 72 120 29 30 93 62 56 146 . 56 . 38 . 3 20 . 3 204 . 12 4 . . 35 33 150 338 320 Cannon 285 | . . . . 3 1 39 4 . . . . 10 3 22 . 17 . . . . . . . . . . . . . 2 17 41 90 36 Launcher 89 | . . . . . . 6 1 5 . . 1 4 . 6 . . . 14 2 . . . 8 6 . 9 6 . . 2 . . 10 9 Special . | . . . . . . . . . . . . . . . . . . . . . . . . . . . . . . . . . . . Kinetic 2652 | 26 100 22 1 17 433 279 72 120 20 30 62 45 38 103 . 56 . 38 . 3 20 . 3 184 . 8 4 . . 37 50 167 378 336 Thermal 336 | . 40 . . 3 1 39 4 . 9 . 31 27 21 65 . 17 . . . . . . . 20 . 4 . . . . . . 35 20 Explosive 89 | . . . . . . 6 1 5 . . 1 4 . 6 . . . 14 2 . . . 8 6 . 9 6 . . 2 . . 10 9 Electromagnetic . | . . . . . . . . . . . . . . . . . . . . . . . . . . . . . . . . . . . Entropic 39 | . . . . . . . . . . . . . . . . . . . . . . . . . . . . . . . . 24 15 . Robot Hit Streak 36 | 8 22 5 5 6 17 31 8 11 15 31 20 17 9 36 . 8 . 17 . 4 5 . 1 17 . 10 3 . . 12 12 18 35 25 Robot Miss Streak 7 | 2 3 2 . 3 5 6 7 3 2 . 3 2 2 2 . 2 . 1 . . 5 . 2 2 . . 2 . . 2 1 3 4 3 Penetration Max 3 | . . . . . . . . . . . . . . . . . . . . . 1 . . 3 . . . . . . 1 1 2 1 Secondary Targets 32 | . . . . . 7 3 . 2 . . 4 . . 2 . . . . . . . . . 1 . . . . . . 1 1 4 7 Max Gunslinging Chain 2 | . . . . . 1 1 . 1 . . 2 . . 1 . . . . . . . . . 1 . . . . . . 1 1 1 2 Capacitor 5 | . . . . . . . . . . . . . . . . . . . . . . . . . . . . . . . . . 5 . Autonomous 95 | . . . . . . . . . . 31 . . . 10 . 33 . 21 . . . . . . . . . . . . . . . . Shots Hit Robots 2042 | 20 93 14 1 8 265 196 40 76 29 30 81 40 39 92 . 41 . 45 . 3 9 . 1 146 . 9 3 . . 28 39 126 315 253 Core Hits 1182 | 4 42 5 . 3 98 86 17 25 15 11 43 29 24 85 . 24 . 15 . 2 4 . 2 75 . 9 23 . . 15 14 70 222 220 Critical Kills 47 | . . . . . 1 2 . . . 1 1 . . . . . . 1 . . . . . 16 . . . . . . 1 6 9 9 Critical Parts Destroyed 59 | . . . . . 2 1 1 . . . 1 . . 1 . 1 . 1 . . 2 . . 23 . . . . . 2 1 . 8 15 Critical Strikes 131 | . . . . . 3 3 1 . . 1 2 . . 1 . 1 . 8 . . 2 . . 39 . . . . . 2 3 12 26 27 Destroy 114 | . . . . . 3 3 1 . . 1 2 . . 1 . 1 . 8 . . 2 . . 39 . . . . . 2 2 6 17 26 Blast 4 | . . . . . . . . . . . . . . . . . . . . . . . . . . . . . . . 1 . 2 1 Sunder 13 | . . . . . . . . . . . . . . . . . . . . . . . . . . . . . . . . 6 7 . Melee Attacks 163 | . . . . . . . . 5 11 . 18 27 20 35 . . . . . . . . 1 21 . . . . 1 . . 12 5 7 Impact . | . . . . . . . . . . . . . . . . . . . . . . . . . . . . . . . . . . . Slashing 163 | . . . . . . . . 5 11 . 18 27 20 35 . . . . . . . . 1 21 . . . . 1 . . 12 5 7 Piercing . | . . . . . . . . . . . . . . . . . . . . . . . . . . . . . . . . . . . Sneak Attacks 16 | . . . . . . . . . 4 . 5 . . . . . . . . . . . . 5 . . . . . . . 1 . 1 Combat Hostiles 1 | . . . . . . . . . . . 1 . . . . . . . . . . . . . . . . . . . . . . . Follow-up Attacks . | . . . . . . . . . . . . . . . . . . . . . . . . . . . . . . . . . . . Damage Inflicted 70022 | 197 1151 181 13 115 4703 3509 884 1530 864 864 2068 1063 816 3240 . 1704 . 1885 . 73 307 . 104 3613 . 571 862 . . 1373 1995 5277 15752 15308 Guns 42149 | 197 1151 181 13 94 4703 2285 645 1318 459 864 1711 845 780 2244 . 1204 . 637 . 73 307 . 51 2156 . 207 82 . . 653 995 2995 7285 8014 Cannons 12547 | . . . . 21 . 724 70 . . . . 218 36 568 . 500 . . . . . . . . . . . . . 116 1000 2153 5355 1786 Explosions 13833 | . . . . . . 500 169 212 . . . . . 428 . . . 1248 . . . . 53 967 . 364 780 . . 604 . . 3112 5396 Melee 1489 | . . . . . . . . . 405 . 357 . . . . . . . . . . . . 486 . . . . . . . 129 . 112 Ramming 4 | . . . . . . . . . . . . . . . . . . . . . . . . 4 . . . . . . . . . . Kinetic 43747 | 197 855 181 13 94 4703 2285 645 1318 293 864 846 426 313 1197 . 1204 . 637 . 73 307 . 51 1672 . 114 82 . . 769 1995 3206 10113 9294 Thermal 7944 | . 296 . . 21 . 724 239 . 166 . 865 637 503 1615 . 500 . . . . . . . 616 . 93 . . . . . . 1163 506 Explosive 13532 | . . . . . . 500 . 212 . . . . . 428 . . . 1248 . . . . 53 835 . 364 780 . . 604 . . 3112 5396 Electromagnetic . | . . . . . . . . . . . . . . . . . . . . . . . . . . . . . . . . . . . Impact . | . . . . . . . . . . . . . . . . . . . . . . . . . . . . . . . . . . . Slashing 1489 | . . . . . . . . . 405 . 357 . . . . . . . . . . . . 486 . . . . . . . 129 . 112 Piercing . | . . . . . . . . . . . . . . . . . . . . . . . . . . . . . . . . . . . Entropic 3306 | . . . . . . . . . . . . . . . . . . . . . . . . . . . . . . . . 1942 1364 . Highest Corruption 59 | . . . . . 2 2 2 5 . . 6 6 . . . . . . . . . . . 4 4 4 4 . . 3 5 10 37 59 Average Corruption 10 | . . . . . 1 2 2 3 . . 2 6 . . . . . . . . . . . 2 4 4 4 . . 2 4 6 25 34 Corruption Purged . | . . . . . . . . . . . . . . . . . . . . . . . . . . . . . . . . . . . Corruption Blocked . | . . . . . . . . . . . . . . . . . . . . . . . . . . . . . . . . . . . Effects 538 | . . . . . 10 22 14 19 . . 7 28 . . . . . . . . . . . 50 8 14 1 . . 5 3 66 144 147 Message Errors 107 | . . . . . 1 8 3 2 . . 2 4 . . . . . . . . . . . 9 3 4 . . . 3 2 15 25 26 Matter Fused 102 | . . . . . 3 5 2 5 . . 1 4 . . . . . . . . . . . 13 1 5 . . . . . 14 25 24 Heat Flow Errors 69 | . . . . . 1 2 3 2 . . 2 3 . . . . . . . . . . . 5 3 2 . . . 1 . 9 22 14 Energy Discharges 58 | . . . . . 2 3 . 2 . . . 3 . . . . . . . . . . . 7 . 1 . . . . . 10 16 14 Parts Rejected 8 | . . . . . . . 1 . . . . . . . . . . . . . . . . 1 . . . . . . . 1 2 3 Parts Fused 9 | . . . . . 1 . . 1 . . . . . . . . . . . . . . . 2 . . . . . . . . . 5 Data Loss (minor) 52 | . . . . . . 1 1 3 . . 1 6 . . . . . . . . . . . 5 1 1 . . . . . 6 14 13 Data Loss (major) 32 | . . . . . . 1 2 2 . . 1 2 . . . . . . . . . . . 5 . . . . . 1 . 3 8 7 Misfires 16 | . . . . . 1 1 1 1 . . . 2 . . . . . . . . . . . 1 . 1 1 . . . 1 4 1 1 Alerts 9 | . . . . . 1 . . . . . . 1 . . . . . . . . . . . . . . . . . . . . 6 1 Misdirections 4 | . . . . . . . . . . . . . . . . . . . . . . . . . . . . . . . . . 1 3 Weapon Failures 72 | . . . . . . 1 1 1 . . . 3 . . . . . . . . . . . 2 . . . . . . . 4 24 36 Overload Shots 7 | . . . . . . . . . . . . . . . . . . . . . . . . . . . . . . . . . 6 1 Overflow Damage 1824 | . . . . . . 8 20 . 138 . 101 . . . . . . . . . . . . 264 . . . . . 45 64 187 470 527 Projectiles 904 | . . . . . . . . . . . . . . . . . . . . . . . . . . . . . . 27 64 88 450 275 Explosions 456 | . . . . . . 8 20 . . . . . . . . . . . . . . . . 218 . . . . . 18 . . 20 172 Melee 464 | . . . . . . . . . 138 . 101 . . . . . . . . . . . . 46 . . . . . . . 99 . 80 Knockbacks 17 | . . . . . . . . . . . . . . . . . . . . . . . . . . . . . . . 4 2 7 4 Impact . | . . . . . . . . . . . . . . . . . . . . . . . . . . . . . . . . . . . Kinetic 13 | . . . . . . . . . . . . . . . . . . . . . . . . . . . . . . . 4 2 4 3 Secondary 4 | . . . . . . . . . . . . . . . . . . . . . . . . . . . . . . . . . 3 1 Self-Inflicted Damage 562 | . . . . . . 29 83 59 . . . . . . . . . . . . . . 27 215 . . . . . . . . . 149 Shots 10 | . . . . . . 1 1 2 . . . . . . . . . . . . . . 1 3 . . . . . . . . . 2 Rammed 1 | . . . . . . . . . . . . . . . . . . . . . . . . 1 . . . . . . . . . . Targets Rammed 1 | . . . . . . . . . . . . . . . . . . . . . . . . 1 . . . . . . . . . . Kicked . | . . . . . . . . . . . . . . . . . . . . . . . . . . . . . . . . . . . Crushed . | . . . . . . . . . . . . . . . . . . . . . . . . . . . . . . . . . . . Highest Temperature 340 | . 198 3 . 60 126 340 328 144 28 . 215 188 108 54 . . . . . . . . . 334 239 128 . . . 201 . 204 314 304 Average Temperature 68 | . 79 3 . 30 22 72 128 54 18 . 47 45 38 17 . . . . . . . . . 90 104 52 . . . 128 . 82 82 72 Received Heat Transfer 3427 | . 396 90 . . 532 237 90 135 42 . 87 132 . 330 . 18 . . . . . . . 298 . 97 9 . . . 7 97 197 633 Effects 3 | . . . . . . 1 . . . . . . . . . . . . . . . . . . . . . . . . . . 1 1 Energy Bleed 1 | . . . . . . 1 . . . . . . . . . . . . . . . . . . . . . . . . . . . . Matter Decay 1 | . . . . . . . . . . . . . . . . . . . . . . . . . . . . . . . . . 1 . Damage (minor) 1 | . . . . . . . . . . . . . . . . . . . . . . . . . . . . . . . . . . 1 Siege Activations 58 | . . . . . . . . . . . 1 . . . . . . . . . . . . 2 . . . . . 2 1 12 24 16 Total Turns 983 | . . . . . . . . . . . 7 . . . . . . . . . . . . 62 . . . . . 13 43 168 410 280 Longest Duration 78 | . . . . . . . . . . . 7 . . . . . . . . . . . . 33 . . . . . 8 43 36 43 78 Martial Activations . | . . . . . . . . . . . . . . . . . . . . . . . . . . . . . . . . . . . Shielding Activations . | . . . . . . . . . . . . . . . . . . . . . . . . . . . . . . . . . . . Robots Disrupted . | . . . . . . . . . . . . . . . . . . . . . . . . . . . . . . . . . . . Combat Hostiles . | . . . . . . . . . . . . . . . . . . . . . . . . . . . . . . . . . . . Robots Corrupted . | . . . . . . . . . . . . . . . . . . . . . . . . . . . . . . . . . . . Combat Hostiles . | . . . . . . . . . . . . . . . . . . . . . . . . . . . . . . . . . . . Parts Fried . | . . . . . . . . . . . . . . . . . . . . . . . . . . . . . . . . . . . Impact Corruptions . | . . . . . . . . . . . . . . . . . . . . . . . . . . . . . . . . . . . Robots Melted 3 | . . . . . . 2 . . . . . . . 1 . . . . . . . . . . . . . . . . . . . . Combat Hostiles 1 | . . . . . . . . . . . . . . 1 . . . . . . . . . . . . . . . . . . . . Parts Melted 18 | . 1 . . . . 4 . . . . 3 3 1 1 . . . . . . . . . 1 . . 2 . . . . . 2 . Heat Transferred 13603 | . 650 . . 37 . 1600 222 . 350 . 1800 1354 1130 3472 . 1120 . . . . . . . 605 . 111 . . . . . . 879 273 Parts Sabotaged . | . . . . . . . . . . . . . . . . . . . . . . . . . . . . . . . . . . . Parts Stolen 4 | . . . . . . . . . . . . . . . . . . . . . 4 . . . . . . . . . . . . . Parts Stripped . | . . . . . . . . . . . . . . . . . . . . . . . . . . . . . . . . . . . Power Chain Reactions . | . . . . . . . . . . . . . . . . . . . . . . . . . . . . . . . . . . . Alert | -11 -10 -10 -10 -9 -8 -8 -8 -8 -7 -7 -7 -7 -6 -6 -6 -6 -5 -5 -5 -5 -5 -5 -4 -4 -4 -4 -4 -3 -3 -3 -2 -2 -1 -1 ------- Run | Yrd Mat Min Exi Min Mat Gar Mat Gar Fac Was Fac Gar Fac Gar Fac DSF Fac Was Fac Upp Upp Zhi Pro Fac Upp Upp War Pro Res DSF Res Tes Acc Com Maximum Alert Level 5 | . . . . . 2 5 3 4 2 . . 3 2 4 2 3 1 . 2 . . . . 3 . . . . . . . 3 5 5 Low Security (%) 41 | 100 100 100 . 100 58 . . . . 100 100 7 54 20 . . . 100 48 . . . . 56 . . . . 100 100 100 36 . . Level 1 11 | . . . . . 17 1 . . 50 . . 26 35 27 . . 100 . 37 . . . . 5 . . . . . . . 19 . . Level 2 18 | . . . . . 24 31 13 17 49 . . 61 9 20 100 81 . . 14 . . . . 19 . . . . . . . 36 22 . Level 3 15 | . . . . . . 29 86 69 . . . 4 . 26 . 18 . . . . . . . 18 . . . . . . . 6 43 . Level 4 7 | . . . . . . 36 . 13 . . . . . 5 . . . . . . . . . . . . . . . . . . 22 31 Level 5 2 | . . . . . . 1 . . . . . . . . . . . . . . . . . . . . . . . . . . 8 22 High Security 3 | . . . . . . . . . . . . . . . . . . . . . . . . . . . . . . . . . 2 46 Max Security . | . . . . . . . . . . . . . . . . . . . . . . . . . . . . . . . . . . . Sterilizations 2 | . . . . . . . . . . . . . . . . 1 . . . . . . . . . . . . . 1 . . . . Peak Influence 2400 | 10 162 48 . 72 603 1675 935 1147 602 130 162 853 447 1203 660 729 382 95 621 . . . . 926 . . . . 5 172 173 904 2224 2400 Initial 1423 | . . 45 . . 26 381 816 463 602 130 56 115 447 21 631 462 382 95 . . . . . . . . . . . 1 96 93 540 1423 Average 511 | 1 88 18 . 28 227 972 829 867 432 107 24 483 211 534 647 604 330 43 210 . . . . 317 . . . . . 111 10 356 1003 1791 Influence Increases 17561 | 15 576 58 . 107 1081 1364 751 734 200 . 457 778 293 1222 49 267 10 94 745 200 352 . 277 1684 . 70 125 . 7 192 218 1408 2464 1763 Destroy 0b10 Robot/C 8700 | . 360 40 . 40 700 620 420 400 80 . 260 240 80 560 . 220 . . 220 100 180 . 140 560 . 60 60 . . 160 160 640 1480 920 Destroy 0b10 Robot/NC 595 | 15 30 . . 5 115 25 35 5 25 . 35 . 15 . . 5 . . 5 . . . . 50 . . 5 . . . . 60 95 70 Destroy Leader 1514 | . 84 10 . 10 174 40 118 20 42 . 68 30 24 70 . 40 . . 40 . 20 . 30 132 . 10 . . . 10 40 112 260 130 Allied During Kill 825 | . . 8 . 3 . 3 64 34 . . . 6 . . . . . . 265 100 152 . 107 . . . . . . . . 83 . . Successful Hack 534 | . 10 . . . 27 35 32 . 17 . 27 . 122 14 49 . 10 . 5 . . . . 50 . . . . 5 . . 42 65 24 Select Force Hacks 60 | . 30 . . . 30 . . . . . . . . . . . . . . . . . . . . . . . . . . . . . Disable Machine 1215 | . . . . 15 15 15 45 15 . . 15 15 . 75 . . . . 120 . . . . 450 . . . . . . . 270 105 60 Anti-Garrison Action 1300 | . . . . . . 450 . 200 . . . 350 . 300 . . . . . . . . . . . . . . . . . . . . Destroy Structure 1893 | . 2 . . 4 5 116 37 60 6 . 22 92 22 128 . 2 . 94 90 . . . . 352 . . . . 2 22 18 201 324 294 Partial Spotted 45 | . . . . . . . . . 15 . 15 . 15 . . . . . . . . . . . . . . . . . . . . . Lose Combat Pursuer 780 | . 60 . . 30 15 60 . . 15 . 15 45 15 75 . . . . . . . . . 90 . . 60 . . . . . 135 165 Active Sensor Use 100 | . . . . . . . . . . . . . . . . . . . . . . . . . . . . . . . . . . 100 Influence Decreases 15181 | 15 458 176 . 40 561 276 1713 300 973 294 372 90 1115 50 592 198 467 366 156 389 344 408 277 759 503 369 155 93 5 22 223 675 1140 1607 Entered New Map 6657 | . . 73 . . 41 206 859 250 545 244 24 50 406 10 572 198 347 177 . 219 76 408 . . 343 81 123 93 . 1 76 74 360 801 Time Decay 6712 | 15 438 103 . 30 500 . 374 . 428 50 338 . 586 . 20 . 120 189 138 150 238 . 186 480 160 278 32 . 5 . 137 581 690 446 Lost Part 821 | . 20 . . 10 20 50 30 30 . . 10 . . 40 . . . . . . 10 . . 110 . 10 . . . 21 10 . 90 360 Lost Ally 268 | . . . . . . 20 . 20 . . . 40 . . . . . . 18 20 20 . 91 19 . . . . . . . 20 . . Purge Threat 723 | . . . . . . . 450 . . . . . 123 . . . . . . . . . . 150 . . . . . . . . . . Squads Dispatched 115 | . 4 . . . 3 . 3 . 4 . 3 . 5 . 1 2 . . 2 . . . . 11 . . . . . . . 10 23 44 Investigation 7 | . 2 . . . 2 . 1 . . . . . . . 1 . . . . . . . . . . . . . . . . . . 1 Extermination 30 | . . . . . . . . . 2 . 3 . 2 . . . . . 1 . . . . 6 . . . . . . . 6 7 3 Reinforcement 24 | . 2 . . . 1 . 2 . 2 . . . 3 . . 2 . . 1 . . . . 2 . . . . . . . 4 1 4 Assault 47 | . . . . . . . . . . . . . . . . . . . . . . . . 3 . . . . . . . . 8 36 Garrison 7 | . . . . . . . . . . . . . . . . . . . . . . . . . . . . . . . . . 7 . Intercept . | . . . . . . . . . . . . . . . . . . . . . . . . . . . . . . . . . . . Searches Triggered . | . . . . . . . . . . . . . . . . . . . . . . . . . . . . . . . . . . . Construction Impeded 4 | . . . . . . . . . . . . . . . . . . . 1 . . . . 1 . . . . . . . 2 . . Haulers Reinforced 1 | . . . . . . . . . . . . . 1 . . . . . . . . . . . . . . . . . . . . . Active Scanning Responses 1 | . . . . . . . . . . . . . . . . . . . . . . . . . . . . . . . . . . 1 Cargo Convoy Interrupts . | . . . . . . . . . . . . . . . . . . . . . . . . . . . . . . . . . . . Stealth | -11 -10 -10 -10 -9 -8 -8 -8 -8 -7 -7 -7 -7 -6 -6 -6 -6 -5 -5 -5 -5 -5 -5 -4 -4 -4 -4 -4 -3 -3 -3 -2 -2 -1 -1 --------- Run | Yrd Mat Min Exi Min Mat Gar Mat Gar Fac Was Fac Gar Fac Gar Fac DSF Fac Was Fac Upp Upp Zhi Pro Fac Upp Upp War Pro Res DSF Res Tes Acc Com Distress Signals 23 | . 2 . . . 4 . 2 . . . 1 . . . . . . . . . . . . . . . . . . . 5 2 3 4 Communications Jammed 110 | . . . . . . . . . . . . . . . . . . . . . . . . 2 . . . . . 3 . . 71 34 Distress Signals 105 | . . . . . . . . . . . . . . . . . . . . . . . . 2 . . . . . . . . 69 34 Times Spotted 675 | . 30 2 . 7 48 34 18 18 6 4 16 10 13 31 . 9 1 7 2 5 7 . 3 40 . 4 23 . . 9 23 34 98 173 Peak Tracking Total 25 | . 5 2 2 4 4 7 3 5 2 3 5 5 4 4 . 3 1 3 2 5 4 . 2 6 . 3 10 . . 5 7 4 9 25 Tactical Retreats 32 | . 3 . . 2 1 1 . . 1 . 1 1 1 5 . . . 2 . . . . . 3 . . 2 . . . . . 3 6 Traps | -11 -10 -10 -10 -9 -8 -8 -8 -8 -7 -7 -7 -7 -6 -6 -6 -6 -5 -5 -5 -5 -5 -5 -4 -4 -4 -4 -4 -3 -3 -3 -2 -2 -1 -1 ------- Run | Yrd Mat Min Exi Min Mat Gar Mat Gar Fac Was Fac Gar Fac Gar Fac DSF Fac Was Fac Upp Upp Zhi Pro Fac Upp Upp War Pro Res DSF Res Tes Acc Com Traps Triggered 40 | . 1 . . . 2 9 . 1 1 . 3 8 2 3 . . 2 . 1 . . . . 5 . . . . . 2 . . . . Indirectly . | . . . . . . . . . . . . . . . . . . . . . . . . . . . . . . . . . . . Trap Hack Attempts . | . . . . . . . . . . . . . . . . . . . . . . . . . . . . . . . . . . . Triggered . | . . . . . . . . . . . . . . . . . . . . . . . . . . . . . . . . . . . Disarmed . | . . . . . . . . . . . . . . . . . . . . . . . . . . . . . . . . . . . Reprogrammed . | . . . . . . . . . . . . . . . . . . . . . . . . . . . . . . . . . . . Reused . | . . . . . . . . . . . . . . . . . . . . . . . . . . . . . . . . . . . Traps Extracted . | . . . . . . . . . . . . . . . . . . . . . . . . . . . . . . . . . . . Installed . | . . . . . . . . . . . . . . . . . . . . . . . . . . . . . . . . . . . Triggered . | . . . . . . . . . . . . . . . . . . . . . . . . . . . . . . . . . . . Machines | -11 -10 -10 -10 -9 -8 -8 -8 -8 -7 -7 -7 -7 -6 -6 -6 -6 -5 -5 -5 -5 -5 -5 -4 -4 -4 -4 -4 -3 -3 -3 -2 -2 -1 -1 ---------- Run | Yrd Mat Min Exi Min Mat Gar Mat Gar Fac Was Fac Gar Fac Gar Fac DSF Fac Was Fac Upp Upp Zhi Pro Fac Upp Upp War Pro Res DSF Res Tes Acc Com Machines Disabled 101 | . . . . 1 1 6 3 5 . . 1 6 . 9 . 1 . . 8 . . . . 30 . . . . . . . 19 7 4 Max in Single Turn 6 | . . . . . 1 1 1 1 . . 1 1 . 1 . 1 . . . . . . . 6 . . . . . . . 1 1 1 Garrison Access 2 | . . . . . . . . . . . . . . . . . . . . . . . . . . . . . . . 2 . . . Garrison Relay 18 | . . . . . . 5 . 4 . . . 5 . 4 . . . . . . . . . . . . . . . . . . . . Energy Cycler 1 | . . . . . . . . . . . . . . . . . . . . . . . . . . . . . . . . . 1 . Machines Repaired . | . . . . . . . . . . . . . . . . . . . . . . . . . . . . . . . . . . . Machines Dismantled . | . . . . . . . . . . . . . . . . . . . . . . . . . . . . . . . . . . . Machines Sabotaged . | . . . . . . . . . . . . . . . . . . . . . . . . . . . . . . . . . . . Overloaded Fab Kills . | . . . . . . . . . . . . . . . . . . . . . . . . . . . . . . . . . . . Hacking | -11 -10 -10 -10 -9 -8 -8 -8 -8 -7 -7 -7 -7 -6 -6 -6 -6 -5 -5 -5 -5 -5 -5 -4 -4 -4 -4 -4 -3 -3 -3 -2 -2 -1 -1 --------- Run | Yrd Mat Min Exi Min Mat Gar Mat Gar Fac Was Fac Gar Fac Gar Fac DSF Fac Was Fac Upp Upp Zhi Pro Fac Upp Upp War Pro Res DSF Res Tes Acc Com Machines Accessed 116 | . 7 . 2 . 11 5 7 . 8 . 9 1 13 1 3 . 1 . 3 . 1 4 . 13 . . 3 . 2 . 3 10 7 2 Terminals 63 | . 6 . . . 8 5 4 . 2 . 4 1 7 1 2 . . . 1 . . . . 7 . . . . 2 . . 5 6 2 Fabricators 4 | . . . . . . . . . 1 . 1 . . . . . . . . . . . . 1 . . . . . . . 1 . . Repair Stations 14 | . . . . . 1 . 1 . 1 . 2 . 2 . 1 . 1 . 2 . . . . 2 . . . . . . . 1 . . Recycling Units 5 | . 1 . . . 1 . . . 2 . . . . . . . . . . . . . . 1 . . . . . . . . . . Scanalyzers 9 | . . . . . . . 1 . 1 . . . 2 . . . . . . . . . . 2 . . . . . . . 3 . . Garrison Access 11 | . . . . . 1 . 1 . 1 . 2 . 2 . . . . . . . . . . . . . . . . . 3 . 1 . Total Hacks 308 | . 23 . 2 . 38 6 26 . 15 . 19 1 34 2 8 . 5 . 11 . 1 17 . 43 . . 7 . 4 . 3 26 15 2 Successful 166 | . 15 . 2 . 18 4 16 . 6 . 10 . 17 1 5 . 4 . 4 . 1 17 . 22 . . 7 . 2 . 2 9 3 1 Failed 139 | . 7 . . . 20 2 9 . 8 . 9 1 17 1 3 . 1 . 7 . . . . 21 . . . . 2 . 1 17 12 1 Catastrophic 28 | . 2 . . . 1 . 2 . 1 . 2 1 4 1 1 . . . 2 . . . . 2 . . . . . . . 4 4 1 Database Lockouts 3 | . 1 . . . . . 1 . 1 . . . . . . . . . . . . . . . . . . . . . . . . . Manual 111 | . 20 . 1 . 20 . 11 . 2 . 8 . 13 1 4 . . . 5 . . . . 12 . . . . 2 . . 8 3 1 Terminals 181 | . 22 . . . 33 6 16 . 4 . 11 1 22 2 5 . . . 4 . . . . 23 . . . . 4 . . 13 13 2 Fabricators 6 | . . . . . . . . . 1 . 1 . . . . . . . . . . . . 2 . . . . . . . 2 . . Repair Stations 47 | . . . . . 3 . 5 . 2 . 4 . 5 . 3 . 5 . 7 . . . . 6 . . . . . . . 7 . . Recycling Units 5 | . 1 . . . 1 . . . 2 . . . . . . . . . . . . . . 1 . . . . . . . . . . Scanalyzers 28 | . . . . . . . 4 . 4 . . . 5 . . . . . . . . . . 11 . . . . . . . 4 . . Garrison Access 14 | . . . . . 1 . 1 . 2 . 3 . 2 . . . . . . . . . . . . . . . . . 3 . 2 . Terminal Hacks 76 | . 9 . 2 . 7 4 6 . . . 3 . 7 1 2 . . . 1 . 1 17 . 4 . . 7 . 1 . . 1 2 1 Record 8 | . . . 1 . . . . . . . . . . . . . . . . . . 5 . . . . 2 . . . . . . . Part Schematic 4 | . . . . . . . . . . . . . . . . . . . . . . 4 . . . . . . . . . . . . Robot Analysis 8 | . 1 . . . 2 . . . . . . . 1 . . . . . . . . 4 . . . . . . . . . . . . Prototype ID Bank 13 | . 2 . . . 1 . 1 . . . 1 . . . . . . . . . . 4 . . . . 4 . . . . . . . Open Door 4 | . . . . . . 2 . . . . . . . . . . . . . . 1 . . . . . 1 . . . . . . . Open DSF 3 | . . . . . . . . . . . . . . . 1 . . . . . . . . 1 . . . . 1 . . . . . Level Access Points 2 | . . . . . . . 1 . . . . . . . . . . . . . . . . . . . . . . . . 1 . . Branch Access Points 4 | . . . . . . . . . . . . . 1 . . . . . 1 . . . . 1 . . . . . . . . 1 . Emergency Access Points 2 | . . . . . 1 1 . . . . . . . . . . . . . . . . . . . . . . . . . . . . Terminal Index 2 | . . . . . . . . . . . . . 1 . . . . . . . . . . . . . . . . . . . . 1 Garrison Index 1 | . . . . . . . . . . . . . 1 . . . . . . . . . . . . . . . . . . . . . Alert Level 3 | . 1 . . . . . . . . . 1 . 1 . . . . . . . . . . . . . . . . . . . . . Unreport Threat 5 | . . . . . . . 3 . . . . . 1 . . . . . . . . . . 1 . . . . . . . . . . Locate Traps 4 | . . . . . . . . . . . 1 . 1 . . . . . . . . . . 1 . . . . . . . . 1 . Transport Status 2 | . 1 . . . 1 . . . . . . . . . . . . . . . . . . . . . . . . . . . . . Hauler Manifests 1 | . 1 . . . . . . . . . . . . . . . . . . . . . . . . . . . . . . . . . Zone Layout 7 | . 3 . . . 2 . 1 . . . . . . . 1 . . . . . . . . . . . . . . . . . . . Patrol Navigation 1 | . . . . . . 1 . . . . . . . . . . . . . . . . . . . . . . . . . . . . Security Stations 1 | . . . . . . . . . . . . . . 1 . . . . . . . . . . . . . . . . . . . . Proto ID Catalog 1 | . . . 1 . . . . . . . . . . . . . . . . . . . . . . . . . . . . . . . Fabricator Hacks 5 | . . . . . . . . . . . 1 . . . . . . . . . . . . 2 . . . . . . . 2 . . Network Status 2 | . . . . . . . . . . . 1 . . . . . . . . . . . . 1 . . . . . . . . . . Load Schematic 1 | . . . . . . . . . . . . . . . . . . . . . . . . . . . . . . . . 1 . . Build 2 | . . . . . . . . . . . . . . . . . . . . . . . . 1 . . . . . . . 1 . . Repair Station Hacks 21 | . . . . . 1 . 2 . 2 . 2 . 2 . 1 . 4 . 2 . . . . 3 . . . . . . . 2 . . Scan Component 13 | . . . . . 1 . 1 . 1 . 1 . 2 . 1 . 2 . 1 . . . . 2 . . . . . . . 1 . . Repair 8 | . . . . . . . 1 . 1 . 1 . . . . . 2 . 1 . . . . 1 . . . . . . . 1 . . Recycling Unit Hacks 2 | . . . . . . . . . 1 . . . . . . . . . . . . . . 1 . . . . . . . . . . Process 1 | . . . . . . . . . 1 . . . . . . . . . . . . . . . . . . . . . . . . . Retrieve Components 1 | . . . . . . . . . . . . . . . . . . . . . . . . 1 . . . . . . . . . . Scanalyzer 19 | . . . . . . . 2 . 2 . . . 4 . . . . . . . . . . 8 . . . . . . . 3 . . Insert Component 6 | . . . . . . . 1 . 1 . . . 2 . . . . . . . . . . 2 . . . . . . . . . . Analyze 2 | . . . . . . . . . . . . . . . . . . . . . . . . 2 . . . . . . . . . . Retrieve Study 11 | . . . . . . . 1 . 1 . . . 2 . . . . . . . . . . 4 . . . . . . . 3 . . Garrison Access Hacks 6 | . . . . . 1 . 1 . . . 1 . 1 . . . . . . . . . . . . . . . . . 2 . . . Unlock Access 4 | . . . . . 1 . 1 . . . 1 . 1 . . . . . . . . . . . . . . . . . . . . . Seal Access 2 | . . . . . . . . . . . . . . . . . . . . . . . . . . . . . . . 2 . . . Unauthorized Hacks 37 | . 6 . . . 9 . 5 . 1 . 3 . 3 . 2 . . . 1 . . . . 4 . . . . 1 . . 1 1 . Terminals 32 | . 5 . . . 7 . 4 . 1 . 3 . 3 . 1 . . . 1 . . . . 4 . . . . 1 . . 1 1 . Assimilate 1 | . . . . . . . . . . . . . . . . . . . . . . . . 1 . . . . . . . . . . Botnet 30 | . 5 . . . 6 . 4 . 1 . 3 . 3 . 1 . . . 1 . . . . 3 . . . . 1 . . 1 1 . Disrupt 1 | . . . . . 1 . . . . . . . . . . . . . . . . . . . . . . . . . . . . . Fabricators . | . . . . . . . . . . . . . . . . . . . . . . . . . . . . . . . . . . . Repair Stations 3 | . . . . . 1 . 1 . . . . . . . 1 . . . . . . . . . . . . . . . . . . . Patch 3 | . . . . . 1 . 1 . . . . . . . 1 . . . . . . . . . . . . . . . . . . . Recycling Units 2 | . 1 . . . 1 . . . . . . . . . . . . . . . . . . . . . . . . . . . . . Tunnel 2 | . 1 . . . 1 . . . . . . . . . . . . . . . . . . . . . . . . . . . . . Scanalyzers . | . . . . . . . . . . . . . . . . . . . . . . . . . . . . . . . . . . . Garrison Access . | . . . . . . . . . . . . . . . . . . . . . . . . . . . . . . . . . . . Data Cores Recovered . | . . . . . . . . . . . . . . . . . . . . . . . . . . . . . . . . . . . Used . | . . . . . . . . . . . . . . . . . . . . . . . . . . . . . . . . . . . Hacking Detections 83 | . 5 . . . 9 2 7 . 7 . 7 1 11 1 2 . . . 2 . . . . 9 . . . . 2 . 1 8 7 2 Full Trace Events . | . . . . . . . . . . . . . . . . . . . . . . . . . . . . . . . . . . . Feedback Events . | . . . . . . . . . . . . . . . . . . . . . . . . . . . . . . . . . . . Feedback Blocked . | . . . . . . . . . . . . . . . . . . . . . . . . . . . . . . . . . . . Robot Schematics Acquired 2 | . . . . . . . . . . . . . . . . . . . . . . . . . . . . . . . . 2 . . Robots Built . | . . . . . . . . . . . . . . . . . . . . . . . . . . . . . . . . . . . Authchips . | . . . . . . . . . . . . . . . . . . . . . . . . . . . . . . . . . . . Time . | . . . . . . . . . . . . . . . . . . . . . . . . . . . . . . . . . . . Total Robot Build Rating . | . . . . . . . . . . . . . . . . . . . . . . . . . . . . . . . . . . . Part Schematics Acquired 15 | . . . . . . . . . . . . . . . . . . . . . . 4 . 2 . . . . . . . 9 . . Parts Built 3 | . . . . . . . . . . . . . . . . . . . . . . . . 2 . . . . . . . 1 . . Authchips 1 | . . . . . . . . . . . . . . . . . . . . . . . . . . . . . . . . 1 . . Time 241 | . . . . . . . . . . . . . . . . . . . . . . . . 139 . . . . . . . 102 . . Total Part Build Rating 26 | . . . . . . . . . . . . . . . . . . . . . . . . 18 . . . . . . . 8 . . Part Studies Acquired 11 | . . . . . . . 1 . 1 . . . 2 . . . . . . . . . . 4 . . . . . . . 3 . . Parts Repaired 8 | . . . . . . . 1 . 1 . 1 . . . . . 2 . 1 . . . . 1 . . . . . . . 1 . . Time 302 | . . . . . . . 22 . 26 . 30 . . . . . 146 . 38 . . . . 28 . . . . . . . 12 . . Parts Recycled . | . . . . . . . . . . . . . . . . . . . . . . . . . . . . . . . . . . . Recycled Matter . | . . . . . . . . . . . . . . . . . . . . . . . . . . . . . . . . . . . Retrieved Matter . | . . . . . . . . . . . . . . . . . . . . . . . . . . . . . . . . . . . Retrieved Components 9 | . . . . . . . . . . . . . . . . . . . . . . . . 9 . . . . . . . . . . Parts Scanalyzed 4 | . . . . . . . 1 . 1 . . . . . . . . . . . . . . 2 . . . . . . . . . . Part Schematics Acquired 2 | . . . . . . . . . . . . . . . . . . . . . . . . 2 . . . . . . . . . . Parts Damaged 1 | . . . . . . . 1 . . . . . . . . . . . . . . . . . . . . . . . . . . . Bothacking | -11 -10 -10 -10 -9 -8 -8 -8 -8 -7 -7 -7 -7 -6 -6 -6 -6 -5 -5 -5 -5 -5 -5 -4 -4 -4 -4 -4 -3 -3 -3 -2 -2 -1 -1 ------------ Run | Yrd Mat Min Exi Min Mat Gar Mat Gar Fac Was Fac Gar Fac Gar Fac DSF Fac Was Fac Upp Upp Zhi Pro Fac Upp Upp War Pro Res DSF Res Tes Acc Com Used RIF Installer . | . . . . . . . . . . . . . . . . . . . . . . . . . . . . . . . . . . . Robots Hacked . | . . . . . . . . . . . . . . . . . . . . . . . . . . . . . . . . . . . Non-combat . | . . . . . . . . . . . . . . . . . . . . . . . . . . . . . . . . . . . Combat . | . . . . . . . . . . . . . . . . . . . . . . . . . . . . . . . . . . . Robot Hacks Applied . | . . . . . . . . . . . . . . . . . . . . . . . . . . . . . . . . . . . Relay Couplers Released 75 | . . . . . . 22 . 16 . . . 20 . 17 . . . . . . . . . . . . . . . . . . . . Machine Destruction 71 | . . . . . . 18 . 16 . . . 20 . 17 . . . . . . . . . . . . . . . . . . . . Programmers 4 | . . . . . . 4 . . . . . . . . . . . . . . . . . . . . . . . . . . . . Fabnet Peak Effective % . | . . . . . . . . . . . . . . . . . . . . . . . . . . . . . . . . . . . Robots Rewired 3 | . . . . . . 2 . . . . . . . . . . . . . . . . . . . . . . . . . 1 . . Allies Hacked 2 | . . . . . . . . . . . . . . . . . . . 1 . . . 1 . . . . . . . . . . . Hacks Repelled . | . . . . . . . . . . . . . . . . . . . . . . . . . . . . . . . . . . . Allies | -11 -10 -10 -10 -9 -8 -8 -8 -8 -7 -7 -7 -7 -6 -6 -6 -6 -5 -5 -5 -5 -5 -5 -4 -4 -4 -4 -4 -3 -3 -3 -2 -2 -1 -1 -------- Run | Yrd Mat Min Exi Min Mat Gar Mat Gar Fac Was Fac Gar Fac Gar Fac DSF Fac Was Fac Upp Upp Zhi Pro Fac Upp Upp War Pro Res DSF Res Tes Acc Com Total Allies 28 | . . 3 . 1 . 3 . . . . . 2 . . . . . 18 . . . . . . . . . . . . . 1 . . Largest Group 18 | . . 3 3 1 1 2 1 1 . . . 2 . . . . . 18 17 11 10 9 9 2 . . . . . . . 1 . . Highest-Rated Group 638 | . . 40 40 31 31 149 149 149 . . . 78 . . . . . 638 613 386 361 311 311 71 . . . . . . . 153 . . Highest-Rated Ally 153 | . . 16 16 31 31 149 149 149 . . . 39 . . . . . 50 50 50 50 46 46 44 . . . . . . . 153 . . Initial Warlord ECA Mod 47 | . . . . . . . 9 9 14 14 14 14 22 22 31 31 40 40 40 40 40 40 39 39 39 39 39 38 38 38 47 47 46 46 Total Orders 3 | . . . 1 . . . . . . . . . . . . . . . . . . . . . . . . . . . . 2 . . STAY 2 | . . . 1 . . . . . . . . . . . . . . . . . . . . . . . . . . . . 1 . . FOLLOW 1 | . . . . . . . . . . . . . . . . . . . . . . . . . . . . . . . . 1 . . Ally Attacks 286 | . . . 5 9 4 10 29 30 . . . 19 . . . . . 24 32 25 37 . 32 1 . . . . . . . 29 . . Total Damage 10994 | . . . 54 182 64 360 1313 1417 . . . 135 . . . . . 785 2567 449 960 . 1427 91 . . . . . . . 1190 . . Kills 87 | . . . 1 2 . 2 21 11 . . . 2 . . . . . 2 15 4 10 . 9 1 . . . . . . . 7 . . Allies Corrupted . | . . . . . . . . . . . . . . . . . . . . . . . . . . . . . . . . . . . Allies Melted 4 | . . . . . . . . . . . . . . . . . . . . . . . . . . . . . . . 3 . . 1 Intel | -11 -10 -10 -10 -9 -8 -8 -8 -8 -7 -7 -7 -7 -6 -6 -6 -6 -5 -5 -5 -5 -5 -5 -4 -4 -4 -4 -4 -3 -3 -3 -2 -2 -1 -1 ------- Run | Yrd Mat Min Exi Min Mat Gar Mat Gar Fac Was Fac Gar Fac Gar Fac DSF Fac Was Fac Upp Upp Zhi Pro Fac Upp Upp War Pro Res DSF Res Tes Acc Com Active Infowar (turns) 21325 | 4 218 . . . . . . . 974 107 1599 2 1727 1 55 265 253 429 508 300 519 207 739 3101 336 587 605 359 257 79 1819 1563 2860 1852 Optics 1 | . . . . . . . . . . . . . . 1 . . . . . . . . . . . . . . . . . . . . Sensors 18427 | . . . . . . . . . 973 107 1599 2 1727 . 55 265 253 429 508 300 519 207 739 3101 336 587 605 359 257 . 1819 1563 2114 3 A.S.S. 577 | . . . . . . . . . . . . . . . . . . . . . . . . . . . . . . . . . . 577 Seismic 222 | 4 218 . . . . . . . . . . . . . . . . . . . . . . . . . . . . . . . . . Jamming 6925 | . . . . . . . . . 1 . . . . . . 2 . . . . . . . 2467 . . . . 245 79 . . 2856 1275 Robot Analysis Total 8 | . 1 . . . 2 . . . . . . . 1 . . . . . . . . 4 . . . . . . . . . . . . Derelict Logs Recovered 6 | . . 1 . . . . . . . . . . . . . . . . . 2 1 . 1 . . 1 . . . . . . . . Drone Launches . | . . . . . . . . . . . . . . . . . . . . . . . . . . . . . . . . . . . Drone Recoveries . | . . . . . . . . . . . . . . . . . . . . . . . . . . . . . . . . . . . Exploration | -11 -10 -10 -10 -9 -8 -8 -8 -8 -7 -7 -7 -7 -6 -6 -6 -6 -5 -5 -5 -5 -5 -5 -4 -4 -4 -4 -4 -3 -3 -3 -2 -2 -1 -1 ------------- Run | Yrd Mat Min Exi Min Mat Gar Mat Gar Fac Was Fac Gar Fac Gar Fac DSF Fac Was Fac Upp Upp Zhi Pro Fac Upp Upp War Pro Res DSF Res Tes Acc Com Turns Passed 33768 | 69 1125 295 336 117 1527 1829 877 979 1047 107 1646 1255 1820 1729 58 343 253 429 508 300 519 207 748 3279 336 608 680 359 257 348 2633 2186 2879 2080 Spaces Moved 21320 | 17 691 198 255 55 858 1038 577 556 713 104 1187 761 1211 964 46 179 94 277 402 244 430 154 621 1996 277 428 526 296 232 165 1930 1206 1581 1051 Core . | . . . . . . . . . . . . . . . . . . . . . . . . . . . . . . . . . . . Treads 492 | . 140 . . . 54 . . . . . . . . 90 . . . 51 . . . . . 2 . . . . . 35 . 1 . 119 Legs . | . . . . . . . . . . . . . . . . . . . . . . . . . . . . . . . . . . . Wheels 20828 | 17 551 198 255 55 804 1038 577 556 713 104 1187 761 1211 874 46 179 94 226 402 244 430 154 621 1994 277 428 526 296 232 130 1930 1205 1581 932 Hover . | . . . . . . . . . . . . . . . . . . . . . . . . . . . . . . . . . . . Flight . | . . . . . . . . . . . . . . . . . . . . . . . . . . . . . . . . . . . Fastest Speed 90 | 95 95 130 130 130 105 115 115 130 105 90 105 120 105 120 120 120 105 105 105 105 105 105 105 105 120 105 120 120 106 106 106 108 121 121 Average Speed 121 | 95 122 130 130 130 126 128 127 130 105 90 117 120 119 132 120 120 105 129 105 105 105 105 110 119 120 119 120 120 106 136 127 122 121 127 Slowest Speed 320 | 95 160 130 130 130 320 160 130 130 110 105 150 120 120 250 120 120 105 240 105 105 105 105 120 240 120 120 120 120 120 270 141 270 122 305 Overloaded Moves . | . . . . . . . . . . . . . . . . . . . . . . . . . . . . . . . . . . . Propulsion Burnouts . | . . . . . . . . . . . . . . . . . . . . . . . . . . . . . . . . . . . Robots Hopped . | . . . . . . . . . . . . . . . . . . . . . . . . . . . . . . . . . . . Potential Cave-ins 1 | . . . . . . . . . . . . . . . . . . . . . . . . . . . 1 . . . . . . . Cave-ins Triggered . | . . . . . . . . . . . . . . . . . . . . . . . . . . . . . . . . . . . Teleports 1 | . . . . . . . . . . . . . . . . . . . . . . . . 1 . . . . . . . . . . Exploration Rate (%) 51 | 2 78 49 62 19 69 88 58 45 16 64 34 74 35 64 2 88 3 84 11 54 53 60 79 41 46 47 86 53 7 90 73 88 38 37 Regions Visited 34 Branch Regions 13 Pre-discovered Areas 9 | . 1 1 1 . 1 . . . . . . . . . . . . . . 1 . 3 . . . 1 . . . . . . . . Known Exits Taken 19 | . . . . . 1 . 1 . . . 1 . 1 . 1 . . . 1 1 1 1 1 1 1 1 1 1 1 . 1 1 1 . Unknown Exits Taken 5 | 1 1 1 1 1 . . . . . . . . . . . . . . . . . . . . . . . . . . . . . . Scrap Searched 16 | . . . . . . . . . . . . . . . . . . . . 5 4 . 1 . 2 3 . 1 . . . . . . Spaces Dug 443 | . . . . . . 8 14 13 6 . 30 36 20 34 . . . . 8 . . . 99 26 . 69 . . 1 . 4 4 33 38 Terrain Destroyed 1107 | . . . . . . 23 25 29 6 . 30 47 21 45 . 9 . 74 8 1 5 . 99 194 . 118 24 . 1 12 11 57 132 136 Melee 90 | . . . . . . . . . 6 . 12 9 20 12 . . . . . . . . 1 15 . . . . 1 . . 3 5 6 Projectile 211 | . . . . . . 2 . . . . . 1 1 10 . 9 . 3 . 1 5 . . 28 . 9 1 . . 3 11 53 45 29 AOE 795 | . . . . . . 21 25 29 . . 18 37 . 23 . . . 71 8 . . . 98 146 . 109 23 . . 9 . . 77 101 Terrain Rammed . | . . . . . . . . . . . . . . . . . . . . . . . . . . . . . . . . . . . Walls Destroyed . | . . . . . . . . . . . . . . . . . . . . . . . . . . . . . . . . . . . Machines Disabled . | . . . . . . . . . . . . . . . . . . . . . . . . . . . . . . . . . . . Actions | -11 -10 -10 -10 -9 -8 -8 -8 -8 -7 -7 -7 -7 -6 -6 -6 -6 -5 -5 -5 -5 -5 -5 -4 -4 -4 -4 -4 -3 -3 -3 -2 -2 -1 -1 --------- Run | Yrd Mat Min Exi Min Mat Gar Mat Gar Fac Was Fac Gar Fac Gar Fac DSF Fac Was Fac Upp Upp Zhi Pro Fac Upp Upp War Pro Res DSF Res Tes Acc Com Total 26784 | 46 832 213 258 78 1152 1357 673 727 965 120 1358 996 1487 1199 50 274 248 317 485 285 485 199 664 2706 281 501 563 299 240 260 2068 1736 2157 1505 Wait 2485 | 11 20 3 . 8 81 43 34 89 195 2 65 62 183 15 . 13 145 6 70 37 30 32 19 494 3 50 15 . . 29 29 296 228 178 Move 21291 | 16 690 197 254 54 857 1037 577 555 713 103 1187 760 1211 963 45 178 94 276 401 243 429 153 620 1995 276 427 525 295 231 164 1929 1205 1580 1051 Hop . | . . . . . . . . . . . . . . . . . . . . . . . . . . . . . . . . . . . Pick Up 227 | . 16 . 2 . 15 6 7 4 11 5 15 7 5 9 1 12 1 2 2 1 7 2 . 27 1 1 4 1 1 7 12 15 18 10 Fast Attach 135 | 1 4 . . . 7 1 3 1 3 . 4 1 5 3 . 1 1 1 2 . 3 4 2 12 . . 1 . 2 7 14 22 12 18 Attach 143 | . 2 . . 1 5 7 3 4 3 1 6 2 6 9 2 2 4 3 . . 1 1 1 12 . 2 . . 2 6 3 10 17 28 Detach 93 | . 3 . . . 5 4 2 2 2 1 . 1 4 6 1 3 1 5 . . 1 2 . 2 . 1 1 . 1 6 4 7 9 19 Swap 579 | 2 10 1 1 5 15 31 10 12 9 1 17 25 18 42 . 16 2 5 3 2 1 1 10 56 . 9 8 2 1 15 30 64 107 48 Drop 303 | 3 17 1 . . 22 10 8 7 8 7 14 8 5 10 1 12 . 3 4 1 6 4 2 25 1 . 2 1 1 13 29 34 17 27 Fire 1187 | 13 70 11 1 10 145 142 29 48 10 . 32 39 22 83 . 37 . 16 2 1 7 . 9 61 . 11 7 . . 12 18 68 164 119 Melee 163 | . . . . . . . . 5 11 . 18 27 20 35 . . . . . . . . 1 21 . . . . 1 . . 12 5 7 Ram . | . . . . . . . . . . . . . . . . . . . . . . . . . . . . . . . . . . . Kick . | . . . . . . . . . . . . . . . . . . . . . . . . . . . . . . . . . . . Crush 1 | . . . . . . . . . . . . . . . . . . . . . . . . 1 . . . . . . . . . . Escape Stasis 169 | . . . . . . 72 . . . . . 64 8 24 . . . . . . . . . . . . . . . 1 . . . . Rewire 8 | . . . . . . 4 . . . . . . . . . . . . 1 . . . . . . . . . . . . 3 . . Trap . | . . . . . . . . . . . . . . . . . . . . . . . . . . . . . . . . . . . Miscellaneous . | . . . . . . . . . . . . . . . . . . . . . . . . . . . . . . . . . . . Route ------- -11/Scrapyard -10/Materials (discovered 4 exits: [*Mat x3] / [*Min]) -10/Mines (discovered 2 exits: [*Mat] / *Exi) -10/Exiles -9/Mines -8/Materials (discovered 2 exits: [*Sto] / Gar) -8/Garrison (discovered 4 exits: *Mat x4) -8/Materials (discovered 5 exits: *Fac x3 / [*Sto] / Gar) -8/Garrison (discovered 3 exits: *Fac x2 / [*Mat]) -7/Factory -7/Waste -7/Factory (discovered 4 exits: *Fac x2 / *Low / Gar) -7/Garrison (discovered 3 exits: *Fac x3) -6/Factory (discovered 4 exits: *Fac / Low x2 / Gar) -6/Garrison (discovered 2 exits: *Fac x2) -6/Factory -6/DSF -5/Factory -5/Waste -5/Factory (discovered 4 exits: *Upp x2 / Ext x2) -5/Upper Caves -5/Upper Caves -5/Zhirov -4/Proximity Caves -4/Factory (discovered 4 exits: *Res x2 / *Upp x2) -4/Upper Caves -4/Upper Caves -4/Warlord -3/Proximity Caves -3/Research (discovered 2 exits: Res / DSF) -3/DSF -2/Research (discovered 4 exits: *Acc x3 / *Tes) -2/Testing -1/Access -1/Command History --------- Turn | Location | Event 6 | -11/Scrapyard | Discovered new exit (range 3) 70 | -11/Scrapyard | Entered Materials 219 | -10/Materials | Discovered new exit (range 5) 253 | -10/Materials | Central database locked down 321 | -10/Materials | Build established: Mutant 336 | -10/Materials | Discovered new exit (range 14) 572 | -10/Materials | Discovered new exit (range 12) 748 | -10/Materials | Core integrity fell below 50% 811 | -10/Materials | Discovered new exit (range 16) 1195 | -10/Materials | Entered Mines 1203 | -10/Mines | Learned location of Zion (-7) 1238 | -10/Mines | Assisted by bots powering up and referring to "LRC-V3" 1262 | -10/Mines | Discovered new exit (range 11) 1476 | -10/Mines | Deemed a non-threat by the Exiles lab entrance 1477 | -10/Mines | Discovered new exit (range 5) 1490 | -10/Mines | Entered Exiles 1490 | -10/Exiles | Accompanied by 3 allies 1522 | -10/Exiles | Met 8R-AWN 1544 | -10/Exiles | Met EX-HEX 1594 | -10/Exiles | Met EX-DEC 1640 | -10/Exiles | Met EX-BIN 1656 | -10/Exiles | Aligned with FarCom system 1657 | -10/Exiles | Given EX-Vault access code 1687 | -10/Exiles | Opened EX-Vault 1698 | -10/Exiles | Found AWS/Gauss 1701 | -10/Exiles | Found Gui. Plasma Cannon 1732 | -10/Exiles | Warned to stay clear of 0b10 Research branches 1743 | -10/Exiles | Exiles lab attacked by MAIN.C 1814 | -10/Exiles | Discovered new exit (range 10) 1824 | -10/Exiles | Attacked by the Exiles 1826 | -10/Exiles | Stole two prototypes: Gui. Plasma Cannon, AWS/Gauss 1826 | -10/Exiles | Entered Mines 1829 | -9/Mines | Received a Mining Laser from a helpful Derelict 1833 | -9/Mines | Assembled infested the area 1838 | -9/Mines | Assisted by a Guerilla fighting off Assembled 1931 | -9/Mines | Discovered new exit (range 10) 1943 | -9/Mines | Entered Materials 1943 | -8/Materials | Accompanied by 1 ally 1943 | -8/Materials | Evolved 4 slots: Propulsion x1, Utility x2, Weapon x1 2479 | -8/Materials | Discovered new exit (range 3) 2594 | -8/Materials | Build established: Tank 3417 | -8/Materials | Identified exit to Garrison 3470 | -8/Materials | Entered Garrison 3480 | -8/Garrison | Triggered checkpoint 3588 | -8/Garrison | Discovered new exit (range 5) 3629 | -8/Garrison | Triggered checkpoint 3711 | -8/Garrison | Garrison Relay disabled 3868 | -8/Garrison | P-60 Hacker assimilated allied 4C-M60(g) 4030 | -8/Garrison | Triggered checkpoint 4280 | -8/Garrison | Triggered checkpoint 4365 | -8/Garrison | Garrison Relay disabled 4376 | -8/Garrison | Build established: Scavenger-Gunner 4378 | -8/Garrison | Garrison Relay disabled 4416 | -8/Garrison | Discovered new exit (range 12) 4470 | -8/Garrison | Triggered checkpoint 4599 | -8/Garrison | Triggered checkpoint 4668 | -8/Garrison | Triggered checkpoint 4699 | -8/Garrison | Garrison Relay disabled 4742 | -8/Garrison | Discovered new exit (range 11) 4824 | -8/Garrison | Triggered checkpoint 4917 | -8/Garrison | Rescued HV-R5K 5038 | -8/Garrison | Triggered checkpoint 5063 | -8/Garrison | Garrison Relay disabled 5147 | -8/Garrison | Discovered new exit (range 11) 5299 | -8/Garrison | Entered Materials 5299 | -8/Materials | Accompanied by 1 ally (HV-R5K) 5389 | -8/Materials | Identified exit to Factory 5619 | -8/Materials | Discovered new exit (range 9) 5634 | -8/Materials | Central database locked down 5948 | -8/Materials | Repaired Broken Plasma Cutter 6176 | -8/Materials | Identified exit to Garrison 6176 | -8/Materials | Entered Garrison 6176 | -8/Garrison | Accompanied by 1 ally (HV-R5K) 6197 | -8/Garrison | Triggered checkpoint 6419 | -8/Garrison | Discovered new exit (range 6) 6476 | -8/Garrison | Triggered checkpoint 6483 | -8/Garrison | Triggered checkpoint 6557 | -8/Garrison | Discovered exit to Factory (range 13) 6604 | -8/Garrison | Triggered checkpoint 6652 | -8/Garrison | Triggered checkpoint 6654 | -8/Garrison | Garrison Relay disabled 6750 | -8/Garrison | Triggered checkpoint 6794 | -8/Garrison | Garrison Relay disabled 6908 | -8/Garrison | Lost 3 parts (1n1u1w) 6982 | -8/Garrison | Garrison Relay disabled 7014 | -8/Garrison | Discovered exit to Factory (range 15) 7026 | -8/Garrison | Garrison Relay disabled 7155 | -8/Garrison | Entered Factory 7155 | -7/Factory | Evolved 2 slots: Propulsion x1, Utility x1 7295 | -7/Factory | Central database locked down 7531 | -7/Factory | Build established: Mutant 7557 | -7/Factory | Repaired Lgt. Armor Plating 8115 | -7/Factory | Discovered new exit (range 11) 8126 | -7/Factory | Identified exit to Lower Caves 8202 | -7/Factory | Sucked down chute 8202 | -7/Factory | Entered Waste 8234 | -7/Waste | Spotted C-40 Crusher 8244 | -7/Waste | Destroyed C-40 Crusher 8245 | -7/Waste | Spotted C-40 Crusher 8250 | -7/Waste | Destroyed C-40 Crusher 8250 | -7/Waste | Spotted C-40 Crusher 8251 | -7/Waste | Destroyed C-40 Crusher 8255 | -7/Waste | Spotted C-40 Crusher 8270 | -7/Waste | AWS/Gauss suddenly broke down 8299 | -7/Waste | Discovered new exit (range 12) 8308 | -7/Waste | Identified exit to Factory 8309 | -7/Waste | Entered Factory 8499 | -7/Factory | Build established: Scavenger-Mutant 8524 | -7/Factory | Discovered new exit (range 10) 8622 | -7/Factory | Identified exit to Factory 9077 | -7/Factory | Discovered exit to Lower Caves (range 7) 9305 | -7/Factory | Discovered exit to Factory (range 14) 9472 | -7/Factory | Repaired Enh. Autogun 9955 | -7/Factory | Identified exit to Garrison 9955 | -7/Factory | Entered Garrison 9987 | -7/Garrison | Triggered checkpoint 10048 | -7/Garrison | Garrison Relay disabled 10154 | -7/Garrison | Triggered checkpoint 10367 | -7/Garrison | Triggered checkpoint 10467 | -7/Garrison | Garrison Relay disabled 10482 | -7/Garrison | Garrison Relay disabled 10547 | -7/Garrison | Discovered exit to Factory (range 13) 10592 | -7/Garrison | Triggered checkpoint 10672 | -7/Garrison | Rescued a captive Derelict 10673 | -7/Garrison | Rescued a captive Derelict 10674 | -7/Garrison | Gui. Plasma Cannon suddenly broke down 10684 | -7/Garrison | Discovered exit to Factory (range 12) 10741 | -7/Garrison | Triggered checkpoint 10824 | -7/Garrison | Garrison Relay disabled 11061 | -7/Garrison | Build established: Mutant 11078 | -7/Garrison | Triggered checkpoint 11166 | -7/Garrison | Discovered exit to Factory (range 10) 11210 | -7/Garrison | Entered Factory 11210 | -6/Factory | Evolved 2 slots: Utility x2 11804 | -6/Factory | Build established: Scavenger-Mutant 12249 | -6/Factory | Specialist reinforcements revealed to be Infiltrators 12387 | -6/Factory | Build established: Scavenger-Tank 12738 | -6/Factory | Discovered new exit (range 15) 12754 | -6/Factory | Identified exit to Lower Caves 12802 | -6/Factory | Identified exit to Factory 13019 | -6/Factory | Identified exit to Garrison 13030 | -6/Factory | Entered Garrison 13056 | -6/Garrison | Triggered checkpoint 13125 | -6/Garrison | Learned Factory security intel 13144 | -6/Garrison | Garrison Relay disabled 13154 | -6/Garrison | Spotted Executioner 13154 | -6/Garrison | Spotted Executioner 13222 | -6/Garrison | Destroyed Executioner 13224 | -6/Garrison | Destroyed Executioner 13243 | -6/Garrison | Found Prototype Processor 13243 | -6/Garrison | Identified Exp. Core Analyzer 13248 | -6/Garrison | Found Prototype Processor 13248 | -6/Garrison | Identified Exp. Targeting Computer 13380 | -6/Garrison | H-XX Assembler disabled 13522 | -6/Garrison | Spotted B-75 Beast 13604 | -6/Garrison | Destroyed B-75 Beast 13824 | -6/Garrison | Triggered checkpoint 13867 | -6/Garrison | Build established: Scavenger-Gunner 14132 | -6/Garrison | Garrison Relay disabled 14138 | -6/Garrison | Triggered checkpoint 14204 | -6/Garrison | Garrison Relay disabled 14234 | -6/Garrison | Discovered new exit (range 4) 14385 | -6/Garrison | Triggered checkpoint 14392 | -6/Garrison | Triggered checkpoint 14472 | -6/Garrison | Triggered checkpoint 14645 | -6/Garrison | Triggered checkpoint 14689 | -6/Garrison | Lost 3 parts (1p1n1u) 14691 | -6/Garrison | Garrison Relay disabled 14743 | -6/Garrison | Discovered new exit (range 13) 14757 | -6/Garrison | Identified exit to Factory 14759 | -6/Garrison | Entered Factory 14817 | -6/Factory | Identified exit to DSF 14817 | -6/Factory | Entered DSF 14862 | -6/DSF | Additional patrols routed to DSF 15089 | -6/DSF | Gui. Plasma Cannon suddenly broke down 15097 | -6/DSF | Sterilization system engaged 15117 | -6/DSF | Ambient heat levels rising (+10) 15126 | -6/DSF | Discovered exit to Factory (range 14) 15132 | -6/DSF | Ambient heat levels rising (+10) 15147 | -6/DSF | Ambient heat levels rising (+10) 15160 | -6/DSF | Entered Factory 15160 | -5/Factory | Evolved 2 slots: Power x1, Propulsion x1 15236 | -5/Factory | Repaired Imp. Light Armor Plating 15237 | -5/Factory | Watched by a mysterious "MATRIX" hacker. 15345 | -5/Factory | Repaired Helical Railgun 15413 | -5/Factory | Sucked down chute 15413 | -5/Factory | Entered Waste 15424 | -5/Waste | Spotted C-40 Crusher 15432 | -5/Waste | Destroyed C-40 Crusher 15526 | -5/Waste | Spotted C-40 Crusher 15534 | -5/Waste | Spotted C-40 Crusher 15535 | -5/Waste | Destroyed C-40 Crusher 15539 | -5/Waste | AWS/Gauss suddenly broke down 15578 | -5/Waste | Destroyed C-40 Crusher 15604 | -5/Waste | Spotted C-40 Crusher 15611 | -5/Waste | Spotted C-40 Crusher 15619 | -5/Waste | Destroyed C-40 Crusher 15638 | -5/Waste | Spotted C-40 Crusher 15664 | -5/Waste | Destroyed C-40 Crusher 15735 | -5/Waste | Warlord forces began an assault 15770 | -5/Waste | Allies destroyed C-40 Crusher 15805 | -5/Waste | Discovered new exit (range 12) 15831 | -5/Waste | Identified exit to Factory 15842 | -5/Waste | Entered Factory 15842 | -5/Factory | Accompanied by 17 allies 15994 | -5/Factory | Repaired Imp. Light Armor Plating 16146 | -5/Factory | Identified exit to Upper Caves 16146 | -5/Factory | Identified exit to Extension 16308 | -5/Factory | Lost 3 allies 16350 | -5/Factory | Entered Upper Caves 16350 | -5/Upper Caves | Accompanied by 11 allies 16352 | -5/Upper Caves | Attracted the attention of an 0b10 checkpoint 16361 | -5/Upper Caves | Met a Warlord Commander 16362 | -5/Upper Caves | Learned location of Warlord (-4) 16363 | -5/Upper Caves | Warlord Commander delivered Encrypted Comm Array 16370 | -5/Upper Caves | Found Encrypted Comm Array 16391 | -5/Upper Caves | Learned Factory security intel 16584 | -5/Upper Caves | Learned 4 Factory zone layouts 16608 | -5/Upper Caves | Discovered new exit (range 11) 16617 | -5/Upper Caves | Identified exit to Upper Caves 16650 | -5/Upper Caves | Entered another Upper Caves area 16650 | -5/Upper Caves | Accompanied by 10 allies 16735 | -5/Upper Caves | Encountered a Warlord checkpoint 16971 | -5/Upper Caves | Encountered a Master Thief 16972 | -5/Upper Caves | Encountered a Master Thief 16972 | -5/Upper Caves | Encountered a Master Thief 16972 | -5/Upper Caves | Encountered a Master Thief 16973 | -5/Upper Caves | Gui. Plasma Cannon stolen by Master Thief 16976 | -5/Upper Caves | AWS/Gauss stolen by Master Thief 16984 | -5/Upper Caves | Helical Railgun stolen by Master Thief 17122 | -5/Upper Caves | Discovered new exit (range 13) 17137 | -5/Upper Caves | Identified exit to Zhirov 17169 | -5/Upper Caves | Entered Zhirov 17169 | -5/Zhirov | Accompanied by 9 allies 17169 | -5/Zhirov | Discovered new exit (range 3) 17188 | -5/Zhirov | Met Zhirov 17208 | -5/Zhirov | Learned location of Quarantine (-3) 17208 | -5/Zhirov | Learned location of Testing (-2) 17208 | -5/Zhirov | Learned location of Command (-1) 17218 | -5/Zhirov | Zhirov requested help retrieving the SGEMP Prototype 17234 | -5/Zhirov | Found Alien Artifact 17234 | -5/Zhirov | Identified Integrated Reactor 17234 | -5/Zhirov | Installed Integrated Reactor, increased core energy generation (+10) 17248 | -5/Zhirov | Found Alien Artifact 17340 | -5/Zhirov | Identified exit to Proximity Caves 17376 | -5/Zhirov | Entered Proximity Caves 17376 | -4/Proximity Caves | Accompanied by 9 allies 17423 | -4/Proximity Caves | Found DCF Scrap (15 items) 17443 | -4/Proximity Caves | Learned location of 1 exit from Research 17701 | -4/Proximity Caves | Found Alien Artifact 17701 | -4/Proximity Caves | Identified Core Expander 17701 | -4/Proximity Caves | Installed Core Expander, added new Weapon slot 17990 | -4/Proximity Caves | Lost 4 allies 18108 | -4/Proximity Caves | Discovered new exit (range 13) 18122 | -4/Proximity Caves | Identified exit to Factory 18124 | -4/Proximity Caves | Entered Factory 18124 | -4/Factory | Accompanied by 2 allies 18124 | -4/Factory | Evolved 2 slots: Utility x2 18321 | -4/Factory | Fabricated Enh. Quantum Rifle (x2) 18471 | -4/Factory | Build established: Hacker-Gunner 19212 | -4/Factory | Identified Transdimensional Reconstructor 19212 | -4/Factory | Warped through subspace 19424 | -4/Factory | Discovered new exit (range 7) 19449 | -4/Factory | Identified exit to Research 19739 | -4/Factory | Discovered exit to Research (range 4) 19954 | -4/Factory | Repaired Hvy. Treads 20186 | -4/Factory | Identified exit to Upper Caves 20624 | -4/Factory | First assault squad dispatched 20808 | -4/Factory | Lost 6 parts (1p1n1u3w) 21066 | -4/Factory | Build established: Scavenger-Gunner 21403 | -4/Factory | Entered Upper Caves 21721 | -4/Upper Caves | Discovered new exit (range 16) 21738 | -4/Upper Caves | Identified exit to Upper Caves 21739 | -4/Upper Caves | Entered another Upper Caves area 21740 | -4/Upper Caves | Identified exit to Warlord 21868 | -4/Upper Caves | Encountered a Warlord checkpoint 22090 | -4/Upper Caves | Attracted the attention of an 0b10 checkpoint 22291 | -4/Upper Caves | Build established: Scientist-Gunner 22347 | -4/Upper Caves | Entered Warlord 22388 | -4/Warlord | System corruption cleaned by Quarantine Array 22519 | -4/Warlord | Visited the Vortex Lab 22533 | -4/Warlord | Found Prototype Energy Cannon 22535 | -4/Warlord | Warlord's base attacked by MAIN.C 22535 | -4/Warlord | Found Prototype Energy Cannon 22538 | -4/Warlord | Found Prototype Energy Cannon 22538 | -4/Warlord | Identified Vortex Driver (x3) 22653 | -4/Warlord | Met Warlord 22885 | -4/Warlord | Warlord forces counterattacked 22949 | -4/Warlord | Spotted Executioner 22958 | -4/Warlord | Spotted Executioner 23012 | -4/Warlord | Discovered new exit (range 15) 23016 | -4/Warlord | Lost 6 allies 23026 | -4/Warlord | Identified exit to Proximity Caves 23027 | -4/Warlord | Entered Proximity Caves 23248 | -3/Proximity Caves | Build established: Scavenger-Gunner 23378 | -3/Proximity Caves | Discovered exit to Research (range 8) 23386 | -3/Proximity Caves | Entered Research 23386 | -3/Research | Evolved 2 slots: Propulsion x1, Utility x1 23387 | -3/Research | Identified exit to Research 23643 | -3/Research | Identified exit to DSF 23643 | -3/Research | Entered DSF 23665 | -3/DSF | Found Quantum Capacitor 23696 | -3/DSF | Additional patrols routed to DSF 23888 | -3/DSF | Sterilization system engaged 23908 | -3/DSF | Ambient heat levels rising (+10) 23923 | -3/DSF | Ambient heat levels rising (+10) 23928 | -3/DSF | Found Fusion Bomb Launcher 23938 | -3/DSF | Ambient heat levels rising (+10) 23953 | -3/DSF | Ambient heat levels rising (+10) 23964 | -3/DSF | Discovered exit to Research (range 14) 23968 | -3/DSF | Ambient heat levels rising (+10) 23983 | -3/DSF | Ambient heat levels rising (+10) 23991 | -3/DSF | Entered Research 23991 | -2/Research | Warlord forces began assault on 0b10 23991 | -2/Research | Evolved 2 slots: Utility x2 24016 | -2/Research | Distinguished unit "Lucky Slug" dispatched to help 24016 | -2/Research | Distinguished unit "The Professionals" dispatched to help 24052 | -2/Research | Met up with Warlord 24101 | -2/Research | Research machine network offline 24288 | -2/Research | Spotted Striker 24397 | -2/Research | Build established: Hacker-Gunner 24695 | -2/Research | Borebot progress halted 24890 | -2/Research | Borebot progress halted 25148 | -2/Research | Warlord invited to help at Command 25148 | -2/Research | Given Cave Seal Controls access code 25150 | -2/Research | Met DD-05H 25205 | -2/Research | Found Exp. Targeting Computer 25427 | -2/Research | Discovered new exit (range 15) 25443 | -2/Research | Identified exit to Access 25772 | -2/Research | Spotted Executioner 25812 | -2/Research | Found Prototype Device 25812 | -2/Research | Identified Adv. Kinecellerator 25827 | -2/Research | Found Exp. Core Analyzer 25901 | -2/Research | Found Exp. Core Analyzer 25920 | -2/Research | Borebot progress halted 25957 | -2/Research | Spotted Striker 26009 | -2/Research | Lost 5 allies 26094 | -2/Research | Discovered exit to Access (range 10) 26350 | -2/Research | Build established: Scavenger-Tank 26468 | -2/Research | Discovered exit to Access (range 4) 26507 | -2/Research | Spotted Striker 26520 | -2/Research | Destroyed Striker 26524 | -2/Research | Spotted Striker 26524 | -2/Research | Spotted Executioner 26543 | -2/Research | Lost 6 allies 26543 | -2/Research | Destroyed Striker 26554 | -2/Research | Destroyed Executioner 26575 | -2/Research | Destroyed 7 combat bots 26612 | -2/Research | Discovered new exit (range 11) 26623 | -2/Research | Identified exit to Testing 26624 | -2/Research | Entered Testing 26798 | -2/Testing | Lost 3 allies 26807 | -2/Testing | Rewired PH-NHHVOBAY6U 26901 | -2/Testing | Found Unknown Device 26901 | -2/Testing | Identified Adv. Force Booster 26930 | -2/Testing | Found Prototype Reactor 26930 | -2/Testing | Identified Zero-point Reactor 27058 | -2/Testing | Fabricated Helical Railgun (x1) 27167 | -2/Testing | Scanned by Researcher 27193 | -2/Testing | Found Prototype Energy Gun 27193 | -2/Testing | Identified Tachyon Dispersion Ray 27342 | -2/Testing | Found Prototype Energy Gun 27342 | -2/Testing | Identified Hyp. EM Gauss Rifle 27369 | -2/Testing | Build established: Scavenger-Gunner 27372 | -2/Testing | Found Prototype Ballistic Cannon 27372 | -2/Testing | Identified Omega Cannon 27757 | -2/Testing | Found Prototype Energy Cannon 27757 | -2/Testing | Identified Cld. Nova Cannon 28020 | -2/Testing | Repaired Hardlight Generator 28244 | -2/Testing | Found Prototype Leg 28244 | -2/Testing | Identified Myomer Exoskeleton 28355 | -2/Testing | Found Prototype Energy Cannon 28355 | -2/Testing | Identified Disintegrator 28639 | -2/Testing | Found Prototype Energy Gun 28639 | -2/Testing | Identified Warp Gun 28691 | -2/Testing | System corruption reached 10% 28810 | -2/Testing | Entered Access 28810 | -1/Access | Evolved 2 slots: Power x1, Utility x1 28877 | -1/Access | Garrison activated, responded to threat 29254 | -1/Access | Garrison activated, responded to threat 29310 | -1/Access | First assault squad dispatched 29317 | -1/Access | System corruption reached 10% 29453 | -1/Access | Build established: Scavenger-Tank 30507 | -1/Access | System corruption reached 30% 30531 | -1/Access | Garrison activated, responded to threat 30640 | -1/Access | Build established: Scavenger-Gunner 30861 | -1/Access | Energy Cycler disabled 30997 | -1/Access | Identified exit to Command 31549 | -1/Access | Destroyed 10 combat bots 31603 | -1/Access | High security lockdown imminent 31683 | -1/Access | High security lockdown engaged 31689 | -1/Access | Entered Command 32018 | -1/Command | Build established: Scavenger-Tank 32088 | -1/Command | Lost 5 parts (2p1n2u) 32099 | -1/Command | Destroyed 10 combat bots 32117 | -1/Command | Found Prototype Device 32117 | -1/Command | Identified Exp. EM Shield 32189 | -1/Command | First assault squad dispatched 32726 | -1/Command | Disengaged cave seal 32726 | -1/Command | Derelicts emerged from the dark tunnel 32726 | -1/Command | Welcomed Warlord to Command 32798 | -1/Command | High security lockdown imminent 32878 | -1/Command | High security lockdown engaged 33075 | -1/Command | Lost 4 allies 33083 | -1/Command | Spotted Striker 33179 | -1/Command | Found Prototype Device 33179 | -1/Command | Identified Active Sensor Suite 33257 | -1/Command | Spotted Executioner 33258 | -1/Command | Spotted Striker 33269 | -1/Command | Spotted Executioner 33272 | -1/Command | Spotted Executioner 33352 | -1/Command | Lost 4 allies 33423 | -1/Command | Spotted Executioner 33427 | -1/Command | Destroyed G8-BYW(L) 33428 | -1/Command | Spotted Executioner 33434 | -1/Command | Spotted Investigator 33437 | -1/Command | Spotted CU-N2I(L) 33460 | -1/Command | Lost 3 parts (3u) 33485 | -1/Command | Destroyed 9 combat bots 33491 | -1/Command | Lost 8 allies 33503 | -1/Command | Found Exp. Core Analyzer 33511 | -1/Command | Found Exp. Core Analyzer 33518 | -1/Command | Found Unknown Protection 33518 | -1/Command | Identified Hvy. Reflective Plating 33538 | -1/Command | Found Prototype Processor 33538 | -1/Command | Identified Exp. Melee Analysis Suite 33689 | -1/Command | Spotted Executioner 33703 | -1/Command | Spotted Striker 33705 | -1/Command | Spotted Executioner 33708 | -1/Command | Spotted Striker 33725 | -1/Command | Warlord destroyed during the assault 33763 | -1/Command | Core integrity fell below 50% 33767 | -1/Command | Core integrity fell below 20% 33769 | -1/Command | Destroyed by Executioner with Helical Railgun Last Messages --------------- 33765_ G-73 Enforcer destroyed. 33765_ Destroyed Adv. Heat Sink. 33765_ G-73 Enforcer destroyed. 33766_ Penetrated by Slug. 33766_ Slug penetrates Wall. 33766_ Exp. Core Analyzer destroyed. 33766_ Slug penetrates Wall. 33766_ Penetrated by Slug. 33767_ Wall collapses. 33767_ The unstable cave ceiling collapses. 33768_ P-80 Master resets L-61 Swordsman, system corruption cleaned. 33768_ Critical hit (Burn: +37). 33768_ Quantum Capacitor destroyed. 33768_ Penetrated by Slug. 33768_ Slug penetrates L-61 Swordsman. 33769_ Penetrated by Slug. 33769_ Slug penetrates Wall. 33769_ Penetrated by Slug. [Achievement: Overachiever] Map ----- +----------------------------------------------------+ | ????????????????????????? ???????????????????? | | ??????????????????????? [ ?????????????????? | | ?????????????????????? ????????????????? | | ??????????????????????# #????????????????? | | ??????????????????????# #????????????????? | | ??????????????????????# " #????????????????? | | ??????????????????????# "% #????????????????? | | ??????????????????????# "% #????????????????? | | ??????????????????????# " #####+????#####??? | | ??????????????????????# "% ## ??? #??? | | ??????????????????????# % ## ? #??? | | ??????????????????????# ## ? #??? | | ??????????????????????# ## "" #??? | | ??????????????????????# " ## """" #??? | | ??????????????????????# ## """" #??? | | ??????????????????????# + !"" #??? | | ??????????????????????#### #;+#### #??? | | ?????????????????????#####=# !%!## #??? | | ?????????????????????# # # = % ! #??? | | ????????????????????## ! ## #??? | | ????????????????????# #% ] # #??? | | ??????????????????### =i= #####+############ | | ??????????????????# m * ###### | | ??????????????????# %%E%! # ############ | | ??????????????????# ! g*l%hi # #???# | | ??????????????????# @ h # #???# | | ??????????????????## %! # #???# | | ???????????????????# # #???# | | ???????????????????# ## =! # #???# | | ???????????????????# ??# *%= p # ############ | | ???????????????????#???# ! g + #?? | | ???????????????????????# # #?? | | ???????????????????????# ;### ######?? | | ???????????????????????# ##?# #??????? | | ???????????????????????# #??# #??????? | | ??????????????????????#########;;####### #??????? | | ???????????????????# h #??????? | | ???????????????????# % % h | | ???????????????????# ###" ##+##### #########???? | | ????????????????????????# ????????# #???????????? | | ??????????????????????????????????# #???????????? | | ??????????????????????????????????# #???????????? | | ??????????????????????????????????# #???????????? | | ??????????????????????????????????# #???????????? | | ??????????????????????????????????# #???????????? | | ??????????????????????????????????# #???????????? | | ??????????????????????????????????# # ???? | | ???????????????????????## ######## # ???? | | ???????????????????? # "??? | | ???????????????????? + "??? | +----------------------------------------------------+ Best States ------------- Heat Dissipation 109 Energy Generation 91 Energy Capacity 740 Matter Stores 300 Matter Capacity 300 Sight Range 16 Robot Scan Range 20 Terrain Scan Density 10 Jamming Range 16 Corruption Containment 12 Armor Coverage 900 Resistance: KI 30 Resistance: TH 25 Resistance: EX 50 Resistance: EM 75 Utility Shielding 66 Weapon Shielding 90 Phase Shifting 15 Evasion (%) 55 Targeting Accuracy 12 Core Analysis 12 Armor Integrity Analysis 40 Recoil Reduction 6 Salvage Targeting 2 Offensive Hacking 14 Defensive Hacking 14 Authchip Count 1 Item Schematics ----------------- Assault Drone Bay | -5/Zhirov | Free Exp. Heat Sink | -5/Zhirov | Free Exp. Optical Array | -5/Zhirov | Free Imp. Arc Thrower | -5/Zhirov | Free Helical Railgun | -4/Factory | Scanalyzed Exp. Weapon Shielding | -4/Factory | Scanalyzed Centrium Heavy Armor Plating | -2/Testing | Archive Adv. KE Penetrator | -2/Testing | Archive Enh. Coil Gun | -2/Testing | Archive Adv. Energy Well | -2/Testing | Archive Mni. Smartbomb Launcher | -2/Testing | Archive Exp. EM Disruption Field | -2/Testing | Archive Exp. Matter Compressor | -2/Testing | Archive Lgt. Antimatter Cannon | -2/Testing | Archive Hvy. Dispersion Rifle | -2/Testing | Archive Robot Schematics ------------------ R-10 Processor | -2/Testing | Archive A-15 Conveyor | -2/Testing | Archive Fabricated ------------ Enh. Quantum Rifle | x2 | -4/Factory | Preloaded Helical Railgun | x1 | -2/Testing | Authchip Repaired ---------- Plasma Cutter | 99% | -8/Materials | Broken Lgt. Armor Plating | 33% | -7/Factory Enh. Autogun | 31% | -7/Factory Imp. Light Armor Plating | 30% | -5/Factory Helical Railgun | 56% | -5/Factory Imp. Light Armor Plating | 50% | -5/Factory Hvy. Treads | 21% | -4/Factory Hardlight Generator | 30% | -2/Testing Studied --------- Com. Wheel | -8/Materials | Hacked Arm. Huge Wheel | -7/Factory | Hacked Missile Launcher | -6/Factory | Hacked Gatling Laser | -6/Factory | Hacked Hyp. Gauss Rifle | -4/Factory | Hacked Railgun | -4/Factory | Hacked Antimatter Reactor | -4/Factory | Hacked Neutrino Core | -4/Factory | Hacked Centrium Wheel | -2/Testing | Hacked Fusion Bomb Launcher | -2/Testing | Hacked Hvy. Siege Treads | -2/Testing | Hacked Alien Tech Used ----------------- Integrated Reactor Core Expander Transdimensional Reconstructor Achievements -------------- More Power To You Overachiever Challenges ------------ None Game ------ Seed DoorNetworkedThrower Manual? 0 Play Time 07:26:44 Cumulative 186.2 hours Start 2026.04.19 @ 13:46:52 End 2026.04.19 @ 22:21:45 Sessions 3 Manual Loads 0 Difficulty Rogue Special Mode None Game No. 113 Rogue 113 Adventurer 0 Explorer 0 Win Type - Total 5 Types 3/0/1/1/0/0/0/0/0/0 Lore% 63 Gallery% 56 Achievement% 50 Wizard Run 0 Options --------- Layout 2 ASCII 0 Keyboard 1 Movement Arrows Keybinds 0 Fullscreen 2 Font 24/Terminus Map View 50x44 Zoom Use 0% Tactical HUD 1 Map Filters NONE Filters NONE Steam 1 RUN: e30bf77e-8d3d-42a2-b215-2ab80a40618a